{"text_format":"1","workbook":"xlsx","n_sheets":3,"sheets":["Welcome","Submission Form","Settings"],"not_rendered":{"charts":0,"images":3,"macros":1,"external_links":2,"defined_names":63,"comments":0,"pivot_tables":0},"unopened":[],"bounds":{"document_bytes":16777216,"sheet_cells":100000,"rows_first":2000,"rows_last":500,"rows_between":2000,"halvings":0,"cell_chars":16384,"cell_head_chars":4096},"cells_cut":0,"cells_raw":0,"read":"whole","date_system":"1900"}

{"sheet":"Welcome","index":0,"n_rows":0,"n_cols":0,"rows_kept":0,"cut":false,"hidden":false,"merged":[]}

{"sheet":"Submission Form","index":1,"n_rows":520,"n_cols":14,"rows_kept":520,"cut":false,"hidden":true,"merged":[[14,7,14,10],[1,0,1,4],[1,8,1,12],[3,8,3,12],[3,0,3,1]]}
["rr",1.5]
["Crown Institute for Genomics: Ready to Run Sample Submission Form",null,null,null,null,null,null,null,"Can only be filled with Office 365"]
["fields marked in * are required"]
["Complete the information in the red/light blue fields",null,null,null,null,"INCPMPM number","for internal use",null,"Incomplete Fields/Errors Detected"]
[]
["Order & user details:"]
["*Researcher first and last name",null,"No more than a single space allowed!"]
["*Lab PI first and last name",null,"No more than a single space allowed!"]
["*Researcher mobile phone number",null,"e.g. 054-1234567 or 0541234567"]
["*Researcher E-Mail address",null,"A valid email address shall be entered"]
["*Institute "]
["*INCPM Bioinformatics Analysis"]
[]
[]
["Ready to Run Sample and NGS Run details:",null,null,null,null,null,null,"*Sequencing parameteres"]
["*Sample name","*Concentration (ng/ul)","*Peak size (bp)","*Molarity (nM, Automated)","*Vol. (ul)","*Illumina sequencer and run mode","*Read type & length","*Read 1","*Read 2","*Index 1","*Index 2","*Phix %","*Library type name","Comments"]
[null,null,null,{"$f":"IF(ISBLANK(C17),\"NA\",1000*B17/(0.649*C17))","v":"NA"}]
[]
["Are you interested in demultiplexing? If yes, fill in the part below."]
["Sample No. (as written on the side of the tube)","*Sample name","*Index sequence","*Species","*Nucleic Acid isolated","*Library type name"]
[1,null,null,null,null,{"$f":"IF(B21<>\"\",IF(IsEmpty(DefaultLibraryTypeName),\"\",DefaultLibraryTypeName),\"\")","v":""}]
[2,null,null,null,null,{"$f":"IF(B22<>\"\",IF(IsEmpty(DefaultLibraryTypeName),\"\",DefaultLibraryTypeName),\"\")","v":""}]
[3,null,null,null,null,{"$f":"IF(B23<>\"\",IF(IsEmpty(DefaultLibraryTypeName),\"\",DefaultLibraryTypeName),\"\")","v":""}]
[4,null,null,null,null,{"$f":"IF(B24<>\"\",IF(IsEmpty(DefaultLibraryTypeName),\"\",DefaultLibraryTypeName),\"\")","v":""}]
[5,null,null,null,null,{"$f":"IF(B25<>\"\",IF(IsEmpty(DefaultLibraryTypeName),\"\",DefaultLibraryTypeName),\"\")","v":""}]
[6,null,null,null,null,{"$f":"IF(B26<>\"\",IF(IsEmpty(DefaultLibraryTypeName),\"\",DefaultLibraryTypeName),\"\")","v":""}]
[7,null,null,null,null,{"$f":"IF(B27<>\"\",IF(IsEmpty(DefaultLibraryTypeName),\"\",DefaultLibraryTypeName),\"\")","v":""}]
[8,null,null,null,null,{"$f":"IF(B28<>\"\",IF(IsEmpty(DefaultLibraryTypeName),\"\",DefaultLibraryTypeName),\"\")","v":""}]
[9,null,null,null,null,{"$f":"IF(B29<>\"\",IF(IsEmpty(DefaultLibraryTypeName),\"\",DefaultLibraryTypeName),\"\")","v":""}]
[10,null,null,null,null,{"$f":"IF(B30<>\"\",IF(IsEmpty(DefaultLibraryTypeName),\"\",DefaultLibraryTypeName),\"\")","v":""}]
[11,null,null,null,null,{"$f":"IF(B31<>\"\",IF(IsEmpty(DefaultLibraryTypeName),\"\",DefaultLibraryTypeName),\"\")","v":""}]
[12,null,null,null,null,{"$f":"IF(B32<>\"\",IF(IsEmpty(DefaultLibraryTypeName),\"\",DefaultLibraryTypeName),\"\")","v":""}]
[13,null,null,null,null,{"$f":"IF(B33<>\"\",IF(IsEmpty(DefaultLibraryTypeName),\"\",DefaultLibraryTypeName),\"\")","v":""}]
[14,null,null,null,null,{"$f":"IF(B34<>\"\",IF(IsEmpty(DefaultLibraryTypeName),\"\",DefaultLibraryTypeName),\"\")","v":""}]
[15,null,null,null,null,{"$f":"IF(B35<>\"\",IF(IsEmpty(DefaultLibraryTypeName),\"\",DefaultLibraryTypeName),\"\")","v":""}]
[16,null,null,null,null,{"$f":"IF(B36<>\"\",IF(IsEmpty(DefaultLibraryTypeName),\"\",DefaultLibraryTypeName),\"\")","v":""}]
[17,null,null,null,null,{"$f":"IF(B37<>\"\",IF(IsEmpty(DefaultLibraryTypeName),\"\",DefaultLibraryTypeName),\"\")","v":""}]
[18,null,null,null,null,{"$f":"IF(B38<>\"\",IF(IsEmpty(DefaultLibraryTypeName),\"\",DefaultLibraryTypeName),\"\")","v":""}]
[19,null,null,null,null,{"$f":"IF(B39<>\"\",IF(IsEmpty(DefaultLibraryTypeName),\"\",DefaultLibraryTypeName),\"\")","v":""}]
[20,null,null,null,null,{"$f":"IF(B40<>\"\",IF(IsEmpty(DefaultLibraryTypeName),\"\",DefaultLibraryTypeName),\"\")","v":""}]
[21,null,null,null,null,{"$f":"IF(B41<>\"\",IF(IsEmpty(DefaultLibraryTypeName),\"\",DefaultLibraryTypeName),\"\")","v":""}]
[22,null,null,null,null,{"$f":"IF(B42<>\"\",IF(IsEmpty(DefaultLibraryTypeName),\"\",DefaultLibraryTypeName),\"\")","v":""}]
[23,null,null,null,null,{"$f":"IF(B43<>\"\",IF(IsEmpty(DefaultLibraryTypeName),\"\",DefaultLibraryTypeName),\"\")","v":""}]
[24,null,null,null,null,{"$f":"IF(B44<>\"\",IF(IsEmpty(DefaultLibraryTypeName),\"\",DefaultLibraryTypeName),\"\")","v":""}]
[25,null,null,null,null,{"$f":"IF(B45<>\"\",IF(IsEmpty(DefaultLibraryTypeName),\"\",DefaultLibraryTypeName),\"\")","v":""}]
[26,null,null,null,null,{"$f":"IF(B46<>\"\",IF(IsEmpty(DefaultLibraryTypeName),\"\",DefaultLibraryTypeName),\"\")","v":""}]
[27,null,null,null,null,{"$f":"IF(B47<>\"\",IF(IsEmpty(DefaultLibraryTypeName),\"\",DefaultLibraryTypeName),\"\")","v":""}]
[28,null,null,null,null,{"$f":"IF(B48<>\"\",IF(IsEmpty(DefaultLibraryTypeName),\"\",DefaultLibraryTypeName),\"\")","v":""}]
[29,null,null,null,null,{"$f":"IF(B49<>\"\",IF(IsEmpty(DefaultLibraryTypeName),\"\",DefaultLibraryTypeName),\"\")","v":""}]
[30,null,null,null,null,{"$f":"IF(B50<>\"\",IF(IsEmpty(DefaultLibraryTypeName),\"\",DefaultLibraryTypeName),\"\")","v":""}]
[31,null,null,null,null,{"$f":"IF(B51<>\"\",IF(IsEmpty(DefaultLibraryTypeName),\"\",DefaultLibraryTypeName),\"\")","v":""}]
[32,null,null,null,null,{"$f":"IF(B52<>\"\",IF(IsEmpty(DefaultLibraryTypeName),\"\",DefaultLibraryTypeName),\"\")","v":""}]
[33,null,null,null,null,{"$f":"IF(B53<>\"\",IF(IsEmpty(DefaultLibraryTypeName),\"\",DefaultLibraryTypeName),\"\")","v":""}]
[34,null,null,null,null,{"$f":"IF(B54<>\"\",IF(IsEmpty(DefaultLibraryTypeName),\"\",DefaultLibraryTypeName),\"\")","v":""}]
[35,null,null,null,null,{"$f":"IF(B55<>\"\",IF(IsEmpty(DefaultLibraryTypeName),\"\",DefaultLibraryTypeName),\"\")","v":""}]
[36,null,null,null,null,{"$f":"IF(B56<>\"\",IF(IsEmpty(DefaultLibraryTypeName),\"\",DefaultLibraryTypeName),\"\")","v":""}]
[37,null,null,null,null,{"$f":"IF(B57<>\"\",IF(IsEmpty(DefaultLibraryTypeName),\"\",DefaultLibraryTypeName),\"\")","v":""}]
[38,null,null,null,null,{"$f":"IF(B58<>\"\",IF(IsEmpty(DefaultLibraryTypeName),\"\",DefaultLibraryTypeName),\"\")","v":""}]
[39,null,null,null,null,{"$f":"IF(B59<>\"\",IF(IsEmpty(DefaultLibraryTypeName),\"\",DefaultLibraryTypeName),\"\")","v":""}]
[40,null,null,null,null,{"$f":"IF(B60<>\"\",IF(IsEmpty(DefaultLibraryTypeName),\"\",DefaultLibraryTypeName),\"\")","v":""}]
[41,null,null,null,null,{"$f":"IF(B61<>\"\",IF(IsEmpty(DefaultLibraryTypeName),\"\",DefaultLibraryTypeName),\"\")","v":""}]
[42,null,null,null,null,{"$f":"IF(B62<>\"\",IF(IsEmpty(DefaultLibraryTypeName),\"\",DefaultLibraryTypeName),\"\")","v":""}]
[43,null,null,null,null,{"$f":"IF(B63<>\"\",IF(IsEmpty(DefaultLibraryTypeName),\"\",DefaultLibraryTypeName),\"\")","v":""}]
[44,null,null,null,null,{"$f":"IF(B64<>\"\",IF(IsEmpty(DefaultLibraryTypeName),\"\",DefaultLibraryTypeName),\"\")","v":""}]
[45,null,null,null,null,{"$f":"IF(B65<>\"\",IF(IsEmpty(DefaultLibraryTypeName),\"\",DefaultLibraryTypeName),\"\")","v":""}]
[46,null,null,null,null,{"$f":"IF(B66<>\"\",IF(IsEmpty(DefaultLibraryTypeName),\"\",DefaultLibraryTypeName),\"\")","v":""}]
[47,null,null,null,null,{"$f":"IF(B67<>\"\",IF(IsEmpty(DefaultLibraryTypeName),\"\",DefaultLibraryTypeName),\"\")","v":""}]
[48,null,null,null,null,{"$f":"IF(B68<>\"\",IF(IsEmpty(DefaultLibraryTypeName),\"\",DefaultLibraryTypeName),\"\")","v":""}]
[49,null,null,null,null,{"$f":"IF(B69<>\"\",IF(IsEmpty(DefaultLibraryTypeName),\"\",DefaultLibraryTypeName),\"\")","v":""}]
[50,null,null,null,null,{"$f":"IF(B70<>\"\",IF(IsEmpty(DefaultLibraryTypeName),\"\",DefaultLibraryTypeName),\"\")","v":""}]
[51,null,null,null,null,{"$f":"IF(B71<>\"\",IF(IsEmpty(DefaultLibraryTypeName),\"\",DefaultLibraryTypeName),\"\")","v":""}]
[52,null,null,null,null,{"$f":"IF(B72<>\"\",IF(IsEmpty(DefaultLibraryTypeName),\"\",DefaultLibraryTypeName),\"\")","v":""}]
[53,null,null,null,null,{"$f":"IF(B73<>\"\",IF(IsEmpty(DefaultLibraryTypeName),\"\",DefaultLibraryTypeName),\"\")","v":""}]
[54,null,null,null,null,{"$f":"IF(B74<>\"\",IF(IsEmpty(DefaultLibraryTypeName),\"\",DefaultLibraryTypeName),\"\")","v":""}]
[55,null,null,null,null,{"$f":"IF(B75<>\"\",IF(IsEmpty(DefaultLibraryTypeName),\"\",DefaultLibraryTypeName),\"\")","v":""}]
[56,null,null,null,null,{"$f":"IF(B76<>\"\",IF(IsEmpty(DefaultLibraryTypeName),\"\",DefaultLibraryTypeName),\"\")","v":""}]
[57,null,null,null,null,{"$f":"IF(B77<>\"\",IF(IsEmpty(DefaultLibraryTypeName),\"\",DefaultLibraryTypeName),\"\")","v":""}]
[58,null,null,null,null,{"$f":"IF(B78<>\"\",IF(IsEmpty(DefaultLibraryTypeName),\"\",DefaultLibraryTypeName),\"\")","v":""}]
[59,null,null,null,null,{"$f":"IF(B79<>\"\",IF(IsEmpty(DefaultLibraryTypeName),\"\",DefaultLibraryTypeName),\"\")","v":""}]
[60,null,null,null,null,{"$f":"IF(B80<>\"\",IF(IsEmpty(DefaultLibraryTypeName),\"\",DefaultLibraryTypeName),\"\")","v":""}]
[61,null,null,null,null,{"$f":"IF(B81<>\"\",IF(IsEmpty(DefaultLibraryTypeName),\"\",DefaultLibraryTypeName),\"\")","v":""}]
[62,null,null,null,null,{"$f":"IF(B82<>\"\",IF(IsEmpty(DefaultLibraryTypeName),\"\",DefaultLibraryTypeName),\"\")","v":""}]
[63,null,null,null,null,{"$f":"IF(B83<>\"\",IF(IsEmpty(DefaultLibraryTypeName),\"\",DefaultLibraryTypeName),\"\")","v":""}]
[64,null,null,null,null,{"$f":"IF(B84<>\"\",IF(IsEmpty(DefaultLibraryTypeName),\"\",DefaultLibraryTypeName),\"\")","v":""}]
[65,null,null,null,null,{"$f":"IF(B85<>\"\",IF(IsEmpty(DefaultLibraryTypeName),\"\",DefaultLibraryTypeName),\"\")","v":""}]
[66,null,null,null,null,{"$f":"IF(B86<>\"\",IF(IsEmpty(DefaultLibraryTypeName),\"\",DefaultLibraryTypeName),\"\")","v":""}]
[67,null,null,null,null,{"$f":"IF(B87<>\"\",IF(IsEmpty(DefaultLibraryTypeName),\"\",DefaultLibraryTypeName),\"\")","v":""}]
[68,null,null,null,null,{"$f":"IF(B88<>\"\",IF(IsEmpty(DefaultLibraryTypeName),\"\",DefaultLibraryTypeName),\"\")","v":""}]
[69,null,null,null,null,{"$f":"IF(B89<>\"\",IF(IsEmpty(DefaultLibraryTypeName),\"\",DefaultLibraryTypeName),\"\")","v":""}]
[70,null,null,null,null,{"$f":"IF(B90<>\"\",IF(IsEmpty(DefaultLibraryTypeName),\"\",DefaultLibraryTypeName),\"\")","v":""}]
[71,null,null,null,null,{"$f":"IF(B91<>\"\",IF(IsEmpty(DefaultLibraryTypeName),\"\",DefaultLibraryTypeName),\"\")","v":""}]
[72,null,null,null,null,{"$f":"IF(B92<>\"\",IF(IsEmpty(DefaultLibraryTypeName),\"\",DefaultLibraryTypeName),\"\")","v":""}]
[73,null,null,null,null,{"$f":"IF(B93<>\"\",IF(IsEmpty(DefaultLibraryTypeName),\"\",DefaultLibraryTypeName),\"\")","v":""}]
[74,null,null,null,null,{"$f":"IF(B94<>\"\",IF(IsEmpty(DefaultLibraryTypeName),\"\",DefaultLibraryTypeName),\"\")","v":""}]
[75,null,null,null,null,{"$f":"IF(B95<>\"\",IF(IsEmpty(DefaultLibraryTypeName),\"\",DefaultLibraryTypeName),\"\")","v":""}]
[76,null,null,null,null,{"$f":"IF(B96<>\"\",IF(IsEmpty(DefaultLibraryTypeName),\"\",DefaultLibraryTypeName),\"\")","v":""}]
[77,null,null,null,null,{"$f":"IF(B97<>\"\",IF(IsEmpty(DefaultLibraryTypeName),\"\",DefaultLibraryTypeName),\"\")","v":""}]
[78,null,null,null,null,{"$f":"IF(B98<>\"\",IF(IsEmpty(DefaultLibraryTypeName),\"\",DefaultLibraryTypeName),\"\")","v":""}]
[79,null,null,null,null,{"$f":"IF(B99<>\"\",IF(IsEmpty(DefaultLibraryTypeName),\"\",DefaultLibraryTypeName),\"\")","v":""}]
[80,null,null,null,null,{"$f":"IF(B100<>\"\",IF(IsEmpty(DefaultLibraryTypeName),\"\",DefaultLibraryTypeName),\"\")","v":""}]
[81,null,null,null,null,{"$f":"IF(B101<>\"\",IF(IsEmpty(DefaultLibraryTypeName),\"\",DefaultLibraryTypeName),\"\")","v":""}]
[82,null,null,null,null,{"$f":"IF(B102<>\"\",IF(IsEmpty(DefaultLibraryTypeName),\"\",DefaultLibraryTypeName),\"\")","v":""}]
[83,null,null,null,null,{"$f":"IF(B103<>\"\",IF(IsEmpty(DefaultLibraryTypeName),\"\",DefaultLibraryTypeName),\"\")","v":""}]
[84,null,null,null,null,{"$f":"IF(B104<>\"\",IF(IsEmpty(DefaultLibraryTypeName),\"\",DefaultLibraryTypeName),\"\")","v":""}]
[85,null,null,null,null,{"$f":"IF(B105<>\"\",IF(IsEmpty(DefaultLibraryTypeName),\"\",DefaultLibraryTypeName),\"\")","v":""}]
[86,null,null,null,null,{"$f":"IF(B106<>\"\",IF(IsEmpty(DefaultLibraryTypeName),\"\",DefaultLibraryTypeName),\"\")","v":""}]
[87,null,null,null,null,{"$f":"IF(B107<>\"\",IF(IsEmpty(DefaultLibraryTypeName),\"\",DefaultLibraryTypeName),\"\")","v":""}]
[88,null,null,null,null,{"$f":"IF(B108<>\"\",IF(IsEmpty(DefaultLibraryTypeName),\"\",DefaultLibraryTypeName),\"\")","v":""}]
[89,null,null,null,null,{"$f":"IF(B109<>\"\",IF(IsEmpty(DefaultLibraryTypeName),\"\",DefaultLibraryTypeName),\"\")","v":""}]
[90,null,null,null,null,{"$f":"IF(B110<>\"\",IF(IsEmpty(DefaultLibraryTypeName),\"\",DefaultLibraryTypeName),\"\")","v":""}]
[91,null,null,null,null,{"$f":"IF(B111<>\"\",IF(IsEmpty(DefaultLibraryTypeName),\"\",DefaultLibraryTypeName),\"\")","v":""}]
[92,null,null,null,null,{"$f":"IF(B112<>\"\",IF(IsEmpty(DefaultLibraryTypeName),\"\",DefaultLibraryTypeName),\"\")","v":""}]
[93,null,null,null,null,{"$f":"IF(B113<>\"\",IF(IsEmpty(DefaultLibraryTypeName),\"\",DefaultLibraryTypeName),\"\")","v":""}]
[94,null,null,null,null,{"$f":"IF(B114<>\"\",IF(IsEmpty(DefaultLibraryTypeName),\"\",DefaultLibraryTypeName),\"\")","v":""}]
[95,null,null,null,null,{"$f":"IF(B115<>\"\",IF(IsEmpty(DefaultLibraryTypeName),\"\",DefaultLibraryTypeName),\"\")","v":""}]
[96,null,null,null,null,{"$f":"IF(B116<>\"\",IF(IsEmpty(DefaultLibraryTypeName),\"\",DefaultLibraryTypeName),\"\")","v":""}]
[97,null,null,null,null,{"$f":"IF(B117<>\"\",IF(IsEmpty(DefaultLibraryTypeName),\"\",DefaultLibraryTypeName),\"\")","v":""}]
[98,null,null,null,null,{"$f":"IF(B118<>\"\",IF(IsEmpty(DefaultLibraryTypeName),\"\",DefaultLibraryTypeName),\"\")","v":""}]
[99,null,null,null,null,{"$f":"IF(B119<>\"\",IF(IsEmpty(DefaultLibraryTypeName),\"\",DefaultLibraryTypeName),\"\")","v":""}]
[100,null,null,null,null,{"$f":"IF(B120<>\"\",IF(IsEmpty(DefaultLibraryTypeName),\"\",DefaultLibraryTypeName),\"\")","v":""}]
[101,null,null,null,null,{"$f":"IF(B121<>\"\",IF(IsEmpty(DefaultLibraryTypeName),\"\",DefaultLibraryTypeName),\"\")","v":""}]
[102,null,null,null,null,{"$f":"IF(B122<>\"\",IF(IsEmpty(DefaultLibraryTypeName),\"\",DefaultLibraryTypeName),\"\")","v":""}]
[103,null,null,null,null,{"$f":"IF(B123<>\"\",IF(IsEmpty(DefaultLibraryTypeName),\"\",DefaultLibraryTypeName),\"\")","v":""}]
[104,null,null,null,null,{"$f":"IF(B124<>\"\",IF(IsEmpty(DefaultLibraryTypeName),\"\",DefaultLibraryTypeName),\"\")","v":""}]
[105,null,null,null,null,{"$f":"IF(B125<>\"\",IF(IsEmpty(DefaultLibraryTypeName),\"\",DefaultLibraryTypeName),\"\")","v":""}]
[106,null,null,null,null,{"$f":"IF(B126<>\"\",IF(IsEmpty(DefaultLibraryTypeName),\"\",DefaultLibraryTypeName),\"\")","v":""}]
[107,null,null,null,null,{"$f":"IF(B127<>\"\",IF(IsEmpty(DefaultLibraryTypeName),\"\",DefaultLibraryTypeName),\"\")","v":""}]
[108,null,null,null,null,{"$f":"IF(B128<>\"\",IF(IsEmpty(DefaultLibraryTypeName),\"\",DefaultLibraryTypeName),\"\")","v":""}]
[109,null,null,null,null,{"$f":"IF(B129<>\"\",IF(IsEmpty(DefaultLibraryTypeName),\"\",DefaultLibraryTypeName),\"\")","v":""}]
[110,null,null,null,null,{"$f":"IF(B130<>\"\",IF(IsEmpty(DefaultLibraryTypeName),\"\",DefaultLibraryTypeName),\"\")","v":""}]
[111,null,null,null,null,{"$f":"IF(B131<>\"\",IF(IsEmpty(DefaultLibraryTypeName),\"\",DefaultLibraryTypeName),\"\")","v":""}]
[112,null,null,null,null,{"$f":"IF(B132<>\"\",IF(IsEmpty(DefaultLibraryTypeName),\"\",DefaultLibraryTypeName),\"\")","v":""}]
[113,null,null,null,null,{"$f":"IF(B133<>\"\",IF(IsEmpty(DefaultLibraryTypeName),\"\",DefaultLibraryTypeName),\"\")","v":""}]
[114,null,null,null,null,{"$f":"IF(B134<>\"\",IF(IsEmpty(DefaultLibraryTypeName),\"\",DefaultLibraryTypeName),\"\")","v":""}]
[115,null,null,null,null,{"$f":"IF(B135<>\"\",IF(IsEmpty(DefaultLibraryTypeName),\"\",DefaultLibraryTypeName),\"\")","v":""}]
[116,null,null,null,null,{"$f":"IF(B136<>\"\",IF(IsEmpty(DefaultLibraryTypeName),\"\",DefaultLibraryTypeName),\"\")","v":""}]
[117,null,null,null,null,{"$f":"IF(B137<>\"\",IF(IsEmpty(DefaultLibraryTypeName),\"\",DefaultLibraryTypeName),\"\")","v":""}]
[118,null,null,null,null,{"$f":"IF(B138<>\"\",IF(IsEmpty(DefaultLibraryTypeName),\"\",DefaultLibraryTypeName),\"\")","v":""}]
[119,null,null,null,null,{"$f":"IF(B139<>\"\",IF(IsEmpty(DefaultLibraryTypeName),\"\",DefaultLibraryTypeName),\"\")","v":""}]
[120,null,null,null,null,{"$f":"IF(B140<>\"\",IF(IsEmpty(DefaultLibraryTypeName),\"\",DefaultLibraryTypeName),\"\")","v":""}]
[121,null,null,null,null,{"$f":"IF(B141<>\"\",IF(IsEmpty(DefaultLibraryTypeName),\"\",DefaultLibraryTypeName),\"\")","v":""}]
[122,null,null,null,null,{"$f":"IF(B142<>\"\",IF(IsEmpty(DefaultLibraryTypeName),\"\",DefaultLibraryTypeName),\"\")","v":""}]
[123,null,null,null,null,{"$f":"IF(B143<>\"\",IF(IsEmpty(DefaultLibraryTypeName),\"\",DefaultLibraryTypeName),\"\")","v":""}]
[124,null,null,null,null,{"$f":"IF(B144<>\"\",IF(IsEmpty(DefaultLibraryTypeName),\"\",DefaultLibraryTypeName),\"\")","v":""}]
[125,null,null,null,null,{"$f":"IF(B145<>\"\",IF(IsEmpty(DefaultLibraryTypeName),\"\",DefaultLibraryTypeName),\"\")","v":""}]
[126,null,null,null,null,{"$f":"IF(B146<>\"\",IF(IsEmpty(DefaultLibraryTypeName),\"\",DefaultLibraryTypeName),\"\")","v":""}]
[127,null,null,null,null,{"$f":"IF(B147<>\"\",IF(IsEmpty(DefaultLibraryTypeName),\"\",DefaultLibraryTypeName),\"\")","v":""}]
[128,null,null,null,null,{"$f":"IF(B148<>\"\",IF(IsEmpty(DefaultLibraryTypeName),\"\",DefaultLibraryTypeName),\"\")","v":""}]
[129,null,null,null,null,{"$f":"IF(B149<>\"\",IF(IsEmpty(DefaultLibraryTypeName),\"\",DefaultLibraryTypeName),\"\")","v":""}]
[130,null,null,null,null,{"$f":"IF(B150<>\"\",IF(IsEmpty(DefaultLibraryTypeName),\"\",DefaultLibraryTypeName),\"\")","v":""}]
[131,null,null,null,null,{"$f":"IF(B151<>\"\",IF(IsEmpty(DefaultLibraryTypeName),\"\",DefaultLibraryTypeName),\"\")","v":""}]
[132,null,null,null,null,{"$f":"IF(B152<>\"\",IF(IsEmpty(DefaultLibraryTypeName),\"\",DefaultLibraryTypeName),\"\")","v":""}]
[133,null,null,null,null,{"$f":"IF(B153<>\"\",IF(IsEmpty(DefaultLibraryTypeName),\"\",DefaultLibraryTypeName),\"\")","v":""}]
[134,null,null,null,null,{"$f":"IF(B154<>\"\",IF(IsEmpty(DefaultLibraryTypeName),\"\",DefaultLibraryTypeName),\"\")","v":""}]
[135,null,null,null,null,{"$f":"IF(B155<>\"\",IF(IsEmpty(DefaultLibraryTypeName),\"\",DefaultLibraryTypeName),\"\")","v":""}]
[136,null,null,null,null,{"$f":"IF(B156<>\"\",IF(IsEmpty(DefaultLibraryTypeName),\"\",DefaultLibraryTypeName),\"\")","v":""}]
[137,null,null,null,null,{"$f":"IF(B157<>\"\",IF(IsEmpty(DefaultLibraryTypeName),\"\",DefaultLibraryTypeName),\"\")","v":""}]
[138,null,null,null,null,{"$f":"IF(B158<>\"\",IF(IsEmpty(DefaultLibraryTypeName),\"\",DefaultLibraryTypeName),\"\")","v":""}]
[139,null,null,null,null,{"$f":"IF(B159<>\"\",IF(IsEmpty(DefaultLibraryTypeName),\"\",DefaultLibraryTypeName),\"\")","v":""}]
[140,null,null,null,null,{"$f":"IF(B160<>\"\",IF(IsEmpty(DefaultLibraryTypeName),\"\",DefaultLibraryTypeName),\"\")","v":""}]
[141,null,null,null,null,{"$f":"IF(B161<>\"\",IF(IsEmpty(DefaultLibraryTypeName),\"\",DefaultLibraryTypeName),\"\")","v":""}]
[142,null,null,null,null,{"$f":"IF(B162<>\"\",IF(IsEmpty(DefaultLibraryTypeName),\"\",DefaultLibraryTypeName),\"\")","v":""}]
[143,null,null,null,null,{"$f":"IF(B163<>\"\",IF(IsEmpty(DefaultLibraryTypeName),\"\",DefaultLibraryTypeName),\"\")","v":""}]
[144,null,null,null,null,{"$f":"IF(B164<>\"\",IF(IsEmpty(DefaultLibraryTypeName),\"\",DefaultLibraryTypeName),\"\")","v":""}]
[145,null,null,null,null,{"$f":"IF(B165<>\"\",IF(IsEmpty(DefaultLibraryTypeName),\"\",DefaultLibraryTypeName),\"\")","v":""}]
[146,null,null,null,null,{"$f":"IF(B166<>\"\",IF(IsEmpty(DefaultLibraryTypeName),\"\",DefaultLibraryTypeName),\"\")","v":""}]
[147,null,null,null,null,{"$f":"IF(B167<>\"\",IF(IsEmpty(DefaultLibraryTypeName),\"\",DefaultLibraryTypeName),\"\")","v":""}]
[148,null,null,null,null,{"$f":"IF(B168<>\"\",IF(IsEmpty(DefaultLibraryTypeName),\"\",DefaultLibraryTypeName),\"\")","v":""}]
[149,null,null,null,null,{"$f":"IF(B169<>\"\",IF(IsEmpty(DefaultLibraryTypeName),\"\",DefaultLibraryTypeName),\"\")","v":""}]
[150,null,null,null,null,{"$f":"IF(B170<>\"\",IF(IsEmpty(DefaultLibraryTypeName),\"\",DefaultLibraryTypeName),\"\")","v":""}]
[151,null,null,null,null,{"$f":"IF(B171<>\"\",IF(IsEmpty(DefaultLibraryTypeName),\"\",DefaultLibraryTypeName),\"\")","v":""}]
[152,null,null,null,null,{"$f":"IF(B172<>\"\",IF(IsEmpty(DefaultLibraryTypeName),\"\",DefaultLibraryTypeName),\"\")","v":""}]
[153,null,null,null,null,{"$f":"IF(B173<>\"\",IF(IsEmpty(DefaultLibraryTypeName),\"\",DefaultLibraryTypeName),\"\")","v":""}]
[154,null,null,null,null,{"$f":"IF(B174<>\"\",IF(IsEmpty(DefaultLibraryTypeName),\"\",DefaultLibraryTypeName),\"\")","v":""}]
[155,null,null,null,null,{"$f":"IF(B175<>\"\",IF(IsEmpty(DefaultLibraryTypeName),\"\",DefaultLibraryTypeName),\"\")","v":""}]
[156,null,null,null,null,{"$f":"IF(B176<>\"\",IF(IsEmpty(DefaultLibraryTypeName),\"\",DefaultLibraryTypeName),\"\")","v":""}]
[157,null,null,null,null,{"$f":"IF(B177<>\"\",IF(IsEmpty(DefaultLibraryTypeName),\"\",DefaultLibraryTypeName),\"\")","v":""}]
[158,null,null,null,null,{"$f":"IF(B178<>\"\",IF(IsEmpty(DefaultLibraryTypeName),\"\",DefaultLibraryTypeName),\"\")","v":""}]
[159,null,null,null,null,{"$f":"IF(B179<>\"\",IF(IsEmpty(DefaultLibraryTypeName),\"\",DefaultLibraryTypeName),\"\")","v":""}]
[160,null,null,null,null,{"$f":"IF(B180<>\"\",IF(IsEmpty(DefaultLibraryTypeName),\"\",DefaultLibraryTypeName),\"\")","v":""}]
[161,null,null,null,null,{"$f":"IF(B181<>\"\",IF(IsEmpty(DefaultLibraryTypeName),\"\",DefaultLibraryTypeName),\"\")","v":""}]
[162,null,null,null,null,{"$f":"IF(B182<>\"\",IF(IsEmpty(DefaultLibraryTypeName),\"\",DefaultLibraryTypeName),\"\")","v":""}]
[163,null,null,null,null,{"$f":"IF(B183<>\"\",IF(IsEmpty(DefaultLibraryTypeName),\"\",DefaultLibraryTypeName),\"\")","v":""}]
[164,null,null,null,null,{"$f":"IF(B184<>\"\",IF(IsEmpty(DefaultLibraryTypeName),\"\",DefaultLibraryTypeName),\"\")","v":""}]
[165,null,null,null,null,{"$f":"IF(B185<>\"\",IF(IsEmpty(DefaultLibraryTypeName),\"\",DefaultLibraryTypeName),\"\")","v":""}]
[166,null,null,null,null,{"$f":"IF(B186<>\"\",IF(IsEmpty(DefaultLibraryTypeName),\"\",DefaultLibraryTypeName),\"\")","v":""}]
[167,null,null,null,null,{"$f":"IF(B187<>\"\",IF(IsEmpty(DefaultLibraryTypeName),\"\",DefaultLibraryTypeName),\"\")","v":""}]
[168,null,null,null,null,{"$f":"IF(B188<>\"\",IF(IsEmpty(DefaultLibraryTypeName),\"\",DefaultLibraryTypeName),\"\")","v":""}]
[169,null,null,null,null,{"$f":"IF(B189<>\"\",IF(IsEmpty(DefaultLibraryTypeName),\"\",DefaultLibraryTypeName),\"\")","v":""}]
[170,null,null,null,null,{"$f":"IF(B190<>\"\",IF(IsEmpty(DefaultLibraryTypeName),\"\",DefaultLibraryTypeName),\"\")","v":""}]
[171,null,null,null,null,{"$f":"IF(B191<>\"\",IF(IsEmpty(DefaultLibraryTypeName),\"\",DefaultLibraryTypeName),\"\")","v":""}]
[172,null,null,null,null,{"$f":"IF(B192<>\"\",IF(IsEmpty(DefaultLibraryTypeName),\"\",DefaultLibraryTypeName),\"\")","v":""}]
[173,null,null,null,null,{"$f":"IF(B193<>\"\",IF(IsEmpty(DefaultLibraryTypeName),\"\",DefaultLibraryTypeName),\"\")","v":""}]
[174,null,null,null,null,{"$f":"IF(B194<>\"\",IF(IsEmpty(DefaultLibraryTypeName),\"\",DefaultLibraryTypeName),\"\")","v":""}]
[175,null,null,null,null,{"$f":"IF(B195<>\"\",IF(IsEmpty(DefaultLibraryTypeName),\"\",DefaultLibraryTypeName),\"\")","v":""}]
[176,null,null,null,null,{"$f":"IF(B196<>\"\",IF(IsEmpty(DefaultLibraryTypeName),\"\",DefaultLibraryTypeName),\"\")","v":""}]
[177,null,null,null,null,{"$f":"IF(B197<>\"\",IF(IsEmpty(DefaultLibraryTypeName),\"\",DefaultLibraryTypeName),\"\")","v":""}]
[178,null,null,null,null,{"$f":"IF(B198<>\"\",IF(IsEmpty(DefaultLibraryTypeName),\"\",DefaultLibraryTypeName),\"\")","v":""}]
[179,null,null,null,null,{"$f":"IF(B199<>\"\",IF(IsEmpty(DefaultLibraryTypeName),\"\",DefaultLibraryTypeName),\"\")","v":""}]
[180,null,null,null,null,{"$f":"IF(B200<>\"\",IF(IsEmpty(DefaultLibraryTypeName),\"\",DefaultLibraryTypeName),\"\")","v":""}]
[181,null,null,null,null,{"$f":"IF(B201<>\"\",IF(IsEmpty(DefaultLibraryTypeName),\"\",DefaultLibraryTypeName),\"\")","v":""}]
[182,null,null,null,null,{"$f":"IF(B202<>\"\",IF(IsEmpty(DefaultLibraryTypeName),\"\",DefaultLibraryTypeName),\"\")","v":""}]
[183,null,null,null,null,{"$f":"IF(B203<>\"\",IF(IsEmpty(DefaultLibraryTypeName),\"\",DefaultLibraryTypeName),\"\")","v":""}]
[184,null,null,null,null,{"$f":"IF(B204<>\"\",IF(IsEmpty(DefaultLibraryTypeName),\"\",DefaultLibraryTypeName),\"\")","v":""}]
[185,null,null,null,null,{"$f":"IF(B205<>\"\",IF(IsEmpty(DefaultLibraryTypeName),\"\",DefaultLibraryTypeName),\"\")","v":""}]
[186,null,null,null,null,{"$f":"IF(B206<>\"\",IF(IsEmpty(DefaultLibraryTypeName),\"\",DefaultLibraryTypeName),\"\")","v":""}]
[187,null,null,null,null,{"$f":"IF(B207<>\"\",IF(IsEmpty(DefaultLibraryTypeName),\"\",DefaultLibraryTypeName),\"\")","v":""}]
[188,null,null,null,null,{"$f":"IF(B208<>\"\",IF(IsEmpty(DefaultLibraryTypeName),\"\",DefaultLibraryTypeName),\"\")","v":""}]
[189,null,null,null,null,{"$f":"IF(B209<>\"\",IF(IsEmpty(DefaultLibraryTypeName),\"\",DefaultLibraryTypeName),\"\")","v":""}]
[190,null,null,null,null,{"$f":"IF(B210<>\"\",IF(IsEmpty(DefaultLibraryTypeName),\"\",DefaultLibraryTypeName),\"\")","v":""}]
[191,null,null,null,null,{"$f":"IF(B211<>\"\",IF(IsEmpty(DefaultLibraryTypeName),\"\",DefaultLibraryTypeName),\"\")","v":""}]
[192,null,null,null,null,{"$f":"IF(B212<>\"\",IF(IsEmpty(DefaultLibraryTypeName),\"\",DefaultLibraryTypeName),\"\")","v":""}]
[193,null,null,null,null,{"$f":"IF(B213<>\"\",IF(IsEmpty(DefaultLibraryTypeName),\"\",DefaultLibraryTypeName),\"\")","v":""}]
[194,null,null,null,null,{"$f":"IF(B214<>\"\",IF(IsEmpty(DefaultLibraryTypeName),\"\",DefaultLibraryTypeName),\"\")","v":""}]
[195,null,null,null,null,{"$f":"IF(B215<>\"\",IF(IsEmpty(DefaultLibraryTypeName),\"\",DefaultLibraryTypeName),\"\")","v":""}]
[196,null,null,null,null,{"$f":"IF(B216<>\"\",IF(IsEmpty(DefaultLibraryTypeName),\"\",DefaultLibraryTypeName),\"\")","v":""}]
[197,null,null,null,null,{"$f":"IF(B217<>\"\",IF(IsEmpty(DefaultLibraryTypeName),\"\",DefaultLibraryTypeName),\"\")","v":""}]
[198,null,null,null,null,{"$f":"IF(B218<>\"\",IF(IsEmpty(DefaultLibraryTypeName),\"\",DefaultLibraryTypeName),\"\")","v":""}]
[199,null,null,null,null,{"$f":"IF(B219<>\"\",IF(IsEmpty(DefaultLibraryTypeName),\"\",DefaultLibraryTypeName),\"\")","v":""}]
[200,null,null,null,null,{"$f":"IF(B220<>\"\",IF(IsEmpty(DefaultLibraryTypeName),\"\",DefaultLibraryTypeName),\"\")","v":""}]
[201,null,null,null,null,{"$f":"IF(B221<>\"\",IF(IsEmpty(DefaultLibraryTypeName),\"\",DefaultLibraryTypeName),\"\")","v":""}]
[202,null,null,null,null,{"$f":"IF(B222<>\"\",IF(IsEmpty(DefaultLibraryTypeName),\"\",DefaultLibraryTypeName),\"\")","v":""}]
[203,null,null,null,null,{"$f":"IF(B223<>\"\",IF(IsEmpty(DefaultLibraryTypeName),\"\",DefaultLibraryTypeName),\"\")","v":""}]
[204,null,null,null,null,{"$f":"IF(B224<>\"\",IF(IsEmpty(DefaultLibraryTypeName),\"\",DefaultLibraryTypeName),\"\")","v":""}]
[205,null,null,null,null,{"$f":"IF(B225<>\"\",IF(IsEmpty(DefaultLibraryTypeName),\"\",DefaultLibraryTypeName),\"\")","v":""}]
[206,null,null,null,null,{"$f":"IF(B226<>\"\",IF(IsEmpty(DefaultLibraryTypeName),\"\",DefaultLibraryTypeName),\"\")","v":""}]
[207,null,null,null,null,{"$f":"IF(B227<>\"\",IF(IsEmpty(DefaultLibraryTypeName),\"\",DefaultLibraryTypeName),\"\")","v":""}]
[208,null,null,null,null,{"$f":"IF(B228<>\"\",IF(IsEmpty(DefaultLibraryTypeName),\"\",DefaultLibraryTypeName),\"\")","v":""}]
[209,null,null,null,null,{"$f":"IF(B229<>\"\",IF(IsEmpty(DefaultLibraryTypeName),\"\",DefaultLibraryTypeName),\"\")","v":""}]
[210,null,null,null,null,{"$f":"IF(B230<>\"\",IF(IsEmpty(DefaultLibraryTypeName),\"\",DefaultLibraryTypeName),\"\")","v":""}]
[211,null,null,null,null,{"$f":"IF(B231<>\"\",IF(IsEmpty(DefaultLibraryTypeName),\"\",DefaultLibraryTypeName),\"\")","v":""}]
[212,null,null,null,null,{"$f":"IF(B232<>\"\",IF(IsEmpty(DefaultLibraryTypeName),\"\",DefaultLibraryTypeName),\"\")","v":""}]
[213,null,null,null,null,{"$f":"IF(B233<>\"\",IF(IsEmpty(DefaultLibraryTypeName),\"\",DefaultLibraryTypeName),\"\")","v":""}]
[214,null,null,null,null,{"$f":"IF(B234<>\"\",IF(IsEmpty(DefaultLibraryTypeName),\"\",DefaultLibraryTypeName),\"\")","v":""}]
[215,null,null,null,null,{"$f":"IF(B235<>\"\",IF(IsEmpty(DefaultLibraryTypeName),\"\",DefaultLibraryTypeName),\"\")","v":""}]
[216,null,null,null,null,{"$f":"IF(B236<>\"\",IF(IsEmpty(DefaultLibraryTypeName),\"\",DefaultLibraryTypeName),\"\")","v":""}]
[217,null,null,null,null,{"$f":"IF(B237<>\"\",IF(IsEmpty(DefaultLibraryTypeName),\"\",DefaultLibraryTypeName),\"\")","v":""}]
[218,null,null,null,null,{"$f":"IF(B238<>\"\",IF(IsEmpty(DefaultLibraryTypeName),\"\",DefaultLibraryTypeName),\"\")","v":""}]
[219,null,null,null,null,{"$f":"IF(B239<>\"\",IF(IsEmpty(DefaultLibraryTypeName),\"\",DefaultLibraryTypeName),\"\")","v":""}]
[220,null,null,null,null,{"$f":"IF(B240<>\"\",IF(IsEmpty(DefaultLibraryTypeName),\"\",DefaultLibraryTypeName),\"\")","v":""}]
[221,null,null,null,null,{"$f":"IF(B241<>\"\",IF(IsEmpty(DefaultLibraryTypeName),\"\",DefaultLibraryTypeName),\"\")","v":""}]
[222,null,null,null,null,{"$f":"IF(B242<>\"\",IF(IsEmpty(DefaultLibraryTypeName),\"\",DefaultLibraryTypeName),\"\")","v":""}]
[223,null,null,null,null,{"$f":"IF(B243<>\"\",IF(IsEmpty(DefaultLibraryTypeName),\"\",DefaultLibraryTypeName),\"\")","v":""}]
[224,null,null,null,null,{"$f":"IF(B244<>\"\",IF(IsEmpty(DefaultLibraryTypeName),\"\",DefaultLibraryTypeName),\"\")","v":""}]
[225,null,null,null,null,{"$f":"IF(B245<>\"\",IF(IsEmpty(DefaultLibraryTypeName),\"\",DefaultLibraryTypeName),\"\")","v":""}]
[226,null,null,null,null,{"$f":"IF(B246<>\"\",IF(IsEmpty(DefaultLibraryTypeName),\"\",DefaultLibraryTypeName),\"\")","v":""}]
[227,null,null,null,null,{"$f":"IF(B247<>\"\",IF(IsEmpty(DefaultLibraryTypeName),\"\",DefaultLibraryTypeName),\"\")","v":""}]
[228,null,null,null,null,{"$f":"IF(B248<>\"\",IF(IsEmpty(DefaultLibraryTypeName),\"\",DefaultLibraryTypeName),\"\")","v":""}]
[229,null,null,null,null,{"$f":"IF(B249<>\"\",IF(IsEmpty(DefaultLibraryTypeName),\"\",DefaultLibraryTypeName),\"\")","v":""}]
[230,null,null,null,null,{"$f":"IF(B250<>\"\",IF(IsEmpty(DefaultLibraryTypeName),\"\",DefaultLibraryTypeName),\"\")","v":""}]
[231,null,null,null,null,{"$f":"IF(B251<>\"\",IF(IsEmpty(DefaultLibraryTypeName),\"\",DefaultLibraryTypeName),\"\")","v":""}]
[232,null,null,null,null,{"$f":"IF(B252<>\"\",IF(IsEmpty(DefaultLibraryTypeName),\"\",DefaultLibraryTypeName),\"\")","v":""}]
[233,null,null,null,null,{"$f":"IF(B253<>\"\",IF(IsEmpty(DefaultLibraryTypeName),\"\",DefaultLibraryTypeName),\"\")","v":""}]
[234,null,null,null,null,{"$f":"IF(B254<>\"\",IF(IsEmpty(DefaultLibraryTypeName),\"\",DefaultLibraryTypeName),\"\")","v":""}]
[235,null,null,null,null,{"$f":"IF(B255<>\"\",IF(IsEmpty(DefaultLibraryTypeName),\"\",DefaultLibraryTypeName),\"\")","v":""}]
[236,null,null,null,null,{"$f":"IF(B256<>\"\",IF(IsEmpty(DefaultLibraryTypeName),\"\",DefaultLibraryTypeName),\"\")","v":""}]
[237,null,null,null,null,{"$f":"IF(B257<>\"\",IF(IsEmpty(DefaultLibraryTypeName),\"\",DefaultLibraryTypeName),\"\")","v":""}]
[238,null,null,null,null,{"$f":"IF(B258<>\"\",IF(IsEmpty(DefaultLibraryTypeName),\"\",DefaultLibraryTypeName),\"\")","v":""}]
[239,null,null,null,null,{"$f":"IF(B259<>\"\",IF(IsEmpty(DefaultLibraryTypeName),\"\",DefaultLibraryTypeName),\"\")","v":""}]
[240,null,null,null,null,{"$f":"IF(B260<>\"\",IF(IsEmpty(DefaultLibraryTypeName),\"\",DefaultLibraryTypeName),\"\")","v":""}]
[241,null,null,null,null,{"$f":"IF(B261<>\"\",IF(IsEmpty(DefaultLibraryTypeName),\"\",DefaultLibraryTypeName),\"\")","v":""}]
[242,null,null,null,null,{"$f":"IF(B262<>\"\",IF(IsEmpty(DefaultLibraryTypeName),\"\",DefaultLibraryTypeName),\"\")","v":""}]
[243,null,null,null,null,{"$f":"IF(B263<>\"\",IF(IsEmpty(DefaultLibraryTypeName),\"\",DefaultLibraryTypeName),\"\")","v":""}]
[244,null,null,null,null,{"$f":"IF(B264<>\"\",IF(IsEmpty(DefaultLibraryTypeName),\"\",DefaultLibraryTypeName),\"\")","v":""}]
[245,null,null,null,null,{"$f":"IF(B265<>\"\",IF(IsEmpty(DefaultLibraryTypeName),\"\",DefaultLibraryTypeName),\"\")","v":""}]
[246,null,null,null,null,{"$f":"IF(B266<>\"\",IF(IsEmpty(DefaultLibraryTypeName),\"\",DefaultLibraryTypeName),\"\")","v":""}]
[247,null,null,null,null,{"$f":"IF(B267<>\"\",IF(IsEmpty(DefaultLibraryTypeName),\"\",DefaultLibraryTypeName),\"\")","v":""}]
[248,null,null,null,null,{"$f":"IF(B268<>\"\",IF(IsEmpty(DefaultLibraryTypeName),\"\",DefaultLibraryTypeName),\"\")","v":""}]
[249,null,null,null,null,{"$f":"IF(B269<>\"\",IF(IsEmpty(DefaultLibraryTypeName),\"\",DefaultLibraryTypeName),\"\")","v":""}]
[250,null,null,null,null,{"$f":"IF(B270<>\"\",IF(IsEmpty(DefaultLibraryTypeName),\"\",DefaultLibraryTypeName),\"\")","v":""}]
[251,null,null,null,null,{"$f":"IF(B271<>\"\",IF(IsEmpty(DefaultLibraryTypeName),\"\",DefaultLibraryTypeName),\"\")","v":""}]
[252,null,null,null,null,{"$f":"IF(B272<>\"\",IF(IsEmpty(DefaultLibraryTypeName),\"\",DefaultLibraryTypeName),\"\")","v":""}]
[253,null,null,null,null,{"$f":"IF(B273<>\"\",IF(IsEmpty(DefaultLibraryTypeName),\"\",DefaultLibraryTypeName),\"\")","v":""}]
[254,null,null,null,null,{"$f":"IF(B274<>\"\",IF(IsEmpty(DefaultLibraryTypeName),\"\",DefaultLibraryTypeName),\"\")","v":""}]
[255,null,null,null,null,{"$f":"IF(B275<>\"\",IF(IsEmpty(DefaultLibraryTypeName),\"\",DefaultLibraryTypeName),\"\")","v":""}]
[256,null,null,null,null,{"$f":"IF(B276<>\"\",IF(IsEmpty(DefaultLibraryTypeName),\"\",DefaultLibraryTypeName),\"\")","v":""}]
[257,null,null,null,null,{"$f":"IF(B277<>\"\",IF(IsEmpty(DefaultLibraryTypeName),\"\",DefaultLibraryTypeName),\"\")","v":""}]
[258,null,null,null,null,{"$f":"IF(B278<>\"\",IF(IsEmpty(DefaultLibraryTypeName),\"\",DefaultLibraryTypeName),\"\")","v":""}]
[259,null,null,null,null,{"$f":"IF(B279<>\"\",IF(IsEmpty(DefaultLibraryTypeName),\"\",DefaultLibraryTypeName),\"\")","v":""}]
[260,null,null,null,null,{"$f":"IF(B280<>\"\",IF(IsEmpty(DefaultLibraryTypeName),\"\",DefaultLibraryTypeName),\"\")","v":""}]
[261,null,null,null,null,{"$f":"IF(B281<>\"\",IF(IsEmpty(DefaultLibraryTypeName),\"\",DefaultLibraryTypeName),\"\")","v":""}]
[262,null,null,null,null,{"$f":"IF(B282<>\"\",IF(IsEmpty(DefaultLibraryTypeName),\"\",DefaultLibraryTypeName),\"\")","v":""}]
[263,null,null,null,null,{"$f":"IF(B283<>\"\",IF(IsEmpty(DefaultLibraryTypeName),\"\",DefaultLibraryTypeName),\"\")","v":""}]
[264,null,null,null,null,{"$f":"IF(B284<>\"\",IF(IsEmpty(DefaultLibraryTypeName),\"\",DefaultLibraryTypeName),\"\")","v":""}]
[265,null,null,null,null,{"$f":"IF(B285<>\"\",IF(IsEmpty(DefaultLibraryTypeName),\"\",DefaultLibraryTypeName),\"\")","v":""}]
[266,null,null,null,null,{"$f":"IF(B286<>\"\",IF(IsEmpty(DefaultLibraryTypeName),\"\",DefaultLibraryTypeName),\"\")","v":""}]
[267,null,null,null,null,{"$f":"IF(B287<>\"\",IF(IsEmpty(DefaultLibraryTypeName),\"\",DefaultLibraryTypeName),\"\")","v":""}]
[268,null,null,null,null,{"$f":"IF(B288<>\"\",IF(IsEmpty(DefaultLibraryTypeName),\"\",DefaultLibraryTypeName),\"\")","v":""}]
[269,null,null,null,null,{"$f":"IF(B289<>\"\",IF(IsEmpty(DefaultLibraryTypeName),\"\",DefaultLibraryTypeName),\"\")","v":""}]
[270,null,null,null,null,{"$f":"IF(B290<>\"\",IF(IsEmpty(DefaultLibraryTypeName),\"\",DefaultLibraryTypeName),\"\")","v":""}]
[271,null,null,null,null,{"$f":"IF(B291<>\"\",IF(IsEmpty(DefaultLibraryTypeName),\"\",DefaultLibraryTypeName),\"\")","v":""}]
[272,null,null,null,null,{"$f":"IF(B292<>\"\",IF(IsEmpty(DefaultLibraryTypeName),\"\",DefaultLibraryTypeName),\"\")","v":""}]
[273,null,null,null,null,{"$f":"IF(B293<>\"\",IF(IsEmpty(DefaultLibraryTypeName),\"\",DefaultLibraryTypeName),\"\")","v":""}]
[274,null,null,null,null,{"$f":"IF(B294<>\"\",IF(IsEmpty(DefaultLibraryTypeName),\"\",DefaultLibraryTypeName),\"\")","v":""}]
[275,null,null,null,null,{"$f":"IF(B295<>\"\",IF(IsEmpty(DefaultLibraryTypeName),\"\",DefaultLibraryTypeName),\"\")","v":""}]
[276,null,null,null,null,{"$f":"IF(B296<>\"\",IF(IsEmpty(DefaultLibraryTypeName),\"\",DefaultLibraryTypeName),\"\")","v":""}]
[277,null,null,null,null,{"$f":"IF(B297<>\"\",IF(IsEmpty(DefaultLibraryTypeName),\"\",DefaultLibraryTypeName),\"\")","v":""}]
[278,null,null,null,null,{"$f":"IF(B298<>\"\",IF(IsEmpty(DefaultLibraryTypeName),\"\",DefaultLibraryTypeName),\"\")","v":""}]
[279,null,null,null,null,{"$f":"IF(B299<>\"\",IF(IsEmpty(DefaultLibraryTypeName),\"\",DefaultLibraryTypeName),\"\")","v":""}]
[280,null,null,null,null,{"$f":"IF(B300<>\"\",IF(IsEmpty(DefaultLibraryTypeName),\"\",DefaultLibraryTypeName),\"\")","v":""}]
[281,null,null,null,null,{"$f":"IF(B301<>\"\",IF(IsEmpty(DefaultLibraryTypeName),\"\",DefaultLibraryTypeName),\"\")","v":""}]
[282,null,null,null,null,{"$f":"IF(B302<>\"\",IF(IsEmpty(DefaultLibraryTypeName),\"\",DefaultLibraryTypeName),\"\")","v":""}]
[283,null,null,null,null,{"$f":"IF(B303<>\"\",IF(IsEmpty(DefaultLibraryTypeName),\"\",DefaultLibraryTypeName),\"\")","v":""}]
[284,null,null,null,null,{"$f":"IF(B304<>\"\",IF(IsEmpty(DefaultLibraryTypeName),\"\",DefaultLibraryTypeName),\"\")","v":""}]
[285,null,null,null,null,{"$f":"IF(B305<>\"\",IF(IsEmpty(DefaultLibraryTypeName),\"\",DefaultLibraryTypeName),\"\")","v":""}]
[286,null,null,null,null,{"$f":"IF(B306<>\"\",IF(IsEmpty(DefaultLibraryTypeName),\"\",DefaultLibraryTypeName),\"\")","v":""}]
[287,null,null,null,null,{"$f":"IF(B307<>\"\",IF(IsEmpty(DefaultLibraryTypeName),\"\",DefaultLibraryTypeName),\"\")","v":""}]
[288,null,null,null,null,{"$f":"IF(B308<>\"\",IF(IsEmpty(DefaultLibraryTypeName),\"\",DefaultLibraryTypeName),\"\")","v":""}]
[289,null,null,null,null,{"$f":"IF(B309<>\"\",IF(IsEmpty(DefaultLibraryTypeName),\"\",DefaultLibraryTypeName),\"\")","v":""}]
[290,null,null,null,null,{"$f":"IF(B310<>\"\",IF(IsEmpty(DefaultLibraryTypeName),\"\",DefaultLibraryTypeName),\"\")","v":""}]
[291,null,null,null,null,{"$f":"IF(B311<>\"\",IF(IsEmpty(DefaultLibraryTypeName),\"\",DefaultLibraryTypeName),\"\")","v":""}]
[292,null,null,null,null,{"$f":"IF(B312<>\"\",IF(IsEmpty(DefaultLibraryTypeName),\"\",DefaultLibraryTypeName),\"\")","v":""}]
[293,null,null,null,null,{"$f":"IF(B313<>\"\",IF(IsEmpty(DefaultLibraryTypeName),\"\",DefaultLibraryTypeName),\"\")","v":""}]
[294,null,null,null,null,{"$f":"IF(B314<>\"\",IF(IsEmpty(DefaultLibraryTypeName),\"\",DefaultLibraryTypeName),\"\")","v":""}]
[295,null,null,null,null,{"$f":"IF(B315<>\"\",IF(IsEmpty(DefaultLibraryTypeName),\"\",DefaultLibraryTypeName),\"\")","v":""}]
[296,null,null,null,null,{"$f":"IF(B316<>\"\",IF(IsEmpty(DefaultLibraryTypeName),\"\",DefaultLibraryTypeName),\"\")","v":""}]
[297,null,null,null,null,{"$f":"IF(B317<>\"\",IF(IsEmpty(DefaultLibraryTypeName),\"\",DefaultLibraryTypeName),\"\")","v":""}]
[298,null,null,null,null,{"$f":"IF(B318<>\"\",IF(IsEmpty(DefaultLibraryTypeName),\"\",DefaultLibraryTypeName),\"\")","v":""}]
[299,null,null,null,null,{"$f":"IF(B319<>\"\",IF(IsEmpty(DefaultLibraryTypeName),\"\",DefaultLibraryTypeName),\"\")","v":""}]
[300,null,null,null,null,{"$f":"IF(B320<>\"\",IF(IsEmpty(DefaultLibraryTypeName),\"\",DefaultLibraryTypeName),\"\")","v":""}]
[301,null,null,null,null,{"$f":"IF(B321<>\"\",IF(IsEmpty(DefaultLibraryTypeName),\"\",DefaultLibraryTypeName),\"\")","v":""}]
[302,null,null,null,null,{"$f":"IF(B322<>\"\",IF(IsEmpty(DefaultLibraryTypeName),\"\",DefaultLibraryTypeName),\"\")","v":""}]
[303,null,null,null,null,{"$f":"IF(B323<>\"\",IF(IsEmpty(DefaultLibraryTypeName),\"\",DefaultLibraryTypeName),\"\")","v":""}]
[304,null,null,null,null,{"$f":"IF(B324<>\"\",IF(IsEmpty(DefaultLibraryTypeName),\"\",DefaultLibraryTypeName),\"\")","v":""}]
[305,null,null,null,null,{"$f":"IF(B325<>\"\",IF(IsEmpty(DefaultLibraryTypeName),\"\",DefaultLibraryTypeName),\"\")","v":""}]
[306,null,null,null,null,{"$f":"IF(B326<>\"\",IF(IsEmpty(DefaultLibraryTypeName),\"\",DefaultLibraryTypeName),\"\")","v":""}]
[307,null,null,null,null,{"$f":"IF(B327<>\"\",IF(IsEmpty(DefaultLibraryTypeName),\"\",DefaultLibraryTypeName),\"\")","v":""}]
[308,null,null,null,null,{"$f":"IF(B328<>\"\",IF(IsEmpty(DefaultLibraryTypeName),\"\",DefaultLibraryTypeName),\"\")","v":""}]
[309,null,null,null,null,{"$f":"IF(B329<>\"\",IF(IsEmpty(DefaultLibraryTypeName),\"\",DefaultLibraryTypeName),\"\")","v":""}]
[310,null,null,null,null,{"$f":"IF(B330<>\"\",IF(IsEmpty(DefaultLibraryTypeName),\"\",DefaultLibraryTypeName),\"\")","v":""}]
[311,null,null,null,null,{"$f":"IF(B331<>\"\",IF(IsEmpty(DefaultLibraryTypeName),\"\",DefaultLibraryTypeName),\"\")","v":""}]
[312,null,null,null,null,{"$f":"IF(B332<>\"\",IF(IsEmpty(DefaultLibraryTypeName),\"\",DefaultLibraryTypeName),\"\")","v":""}]
[313,null,null,null,null,{"$f":"IF(B333<>\"\",IF(IsEmpty(DefaultLibraryTypeName),\"\",DefaultLibraryTypeName),\"\")","v":""}]
[314,null,null,null,null,{"$f":"IF(B334<>\"\",IF(IsEmpty(DefaultLibraryTypeName),\"\",DefaultLibraryTypeName),\"\")","v":""}]
[315,null,null,null,null,{"$f":"IF(B335<>\"\",IF(IsEmpty(DefaultLibraryTypeName),\"\",DefaultLibraryTypeName),\"\")","v":""}]
[316,null,null,null,null,{"$f":"IF(B336<>\"\",IF(IsEmpty(DefaultLibraryTypeName),\"\",DefaultLibraryTypeName),\"\")","v":""}]
[317,null,null,null,null,{"$f":"IF(B337<>\"\",IF(IsEmpty(DefaultLibraryTypeName),\"\",DefaultLibraryTypeName),\"\")","v":""}]
[318,null,null,null,null,{"$f":"IF(B338<>\"\",IF(IsEmpty(DefaultLibraryTypeName),\"\",DefaultLibraryTypeName),\"\")","v":""}]
[319,null,null,null,null,{"$f":"IF(B339<>\"\",IF(IsEmpty(DefaultLibraryTypeName),\"\",DefaultLibraryTypeName),\"\")","v":""}]
[320,null,null,null,null,{"$f":"IF(B340<>\"\",IF(IsEmpty(DefaultLibraryTypeName),\"\",DefaultLibraryTypeName),\"\")","v":""}]
[321,null,null,null,null,{"$f":"IF(B341<>\"\",IF(IsEmpty(DefaultLibraryTypeName),\"\",DefaultLibraryTypeName),\"\")","v":""}]
[322,null,null,null,null,{"$f":"IF(B342<>\"\",IF(IsEmpty(DefaultLibraryTypeName),\"\",DefaultLibraryTypeName),\"\")","v":""}]
[323,null,null,null,null,{"$f":"IF(B343<>\"\",IF(IsEmpty(DefaultLibraryTypeName),\"\",DefaultLibraryTypeName),\"\")","v":""}]
[324,null,null,null,null,{"$f":"IF(B344<>\"\",IF(IsEmpty(DefaultLibraryTypeName),\"\",DefaultLibraryTypeName),\"\")","v":""}]
[325,null,null,null,null,{"$f":"IF(B345<>\"\",IF(IsEmpty(DefaultLibraryTypeName),\"\",DefaultLibraryTypeName),\"\")","v":""}]
[326,null,null,null,null,{"$f":"IF(B346<>\"\",IF(IsEmpty(DefaultLibraryTypeName),\"\",DefaultLibraryTypeName),\"\")","v":""}]
[327,null,null,null,null,{"$f":"IF(B347<>\"\",IF(IsEmpty(DefaultLibraryTypeName),\"\",DefaultLibraryTypeName),\"\")","v":""}]
[328,null,null,null,null,{"$f":"IF(B348<>\"\",IF(IsEmpty(DefaultLibraryTypeName),\"\",DefaultLibraryTypeName),\"\")","v":""}]
[329,null,null,null,null,{"$f":"IF(B349<>\"\",IF(IsEmpty(DefaultLibraryTypeName),\"\",DefaultLibraryTypeName),\"\")","v":""}]
[330,null,null,null,null,{"$f":"IF(B350<>\"\",IF(IsEmpty(DefaultLibraryTypeName),\"\",DefaultLibraryTypeName),\"\")","v":""}]
[331,null,null,null,null,{"$f":"IF(B351<>\"\",IF(IsEmpty(DefaultLibraryTypeName),\"\",DefaultLibraryTypeName),\"\")","v":""}]
[332,null,null,null,null,{"$f":"IF(B352<>\"\",IF(IsEmpty(DefaultLibraryTypeName),\"\",DefaultLibraryTypeName),\"\")","v":""}]
[333,null,null,null,null,{"$f":"IF(B353<>\"\",IF(IsEmpty(DefaultLibraryTypeName),\"\",DefaultLibraryTypeName),\"\")","v":""}]
[334,null,null,null,null,{"$f":"IF(B354<>\"\",IF(IsEmpty(DefaultLibraryTypeName),\"\",DefaultLibraryTypeName),\"\")","v":""}]
[335,null,null,null,null,{"$f":"IF(B355<>\"\",IF(IsEmpty(DefaultLibraryTypeName),\"\",DefaultLibraryTypeName),\"\")","v":""}]
[336,null,null,null,null,{"$f":"IF(B356<>\"\",IF(IsEmpty(DefaultLibraryTypeName),\"\",DefaultLibraryTypeName),\"\")","v":""}]
[337,null,null,null,null,{"$f":"IF(B357<>\"\",IF(IsEmpty(DefaultLibraryTypeName),\"\",DefaultLibraryTypeName),\"\")","v":""}]
[338,null,null,null,null,{"$f":"IF(B358<>\"\",IF(IsEmpty(DefaultLibraryTypeName),\"\",DefaultLibraryTypeName),\"\")","v":""}]
[339,null,null,null,null,{"$f":"IF(B359<>\"\",IF(IsEmpty(DefaultLibraryTypeName),\"\",DefaultLibraryTypeName),\"\")","v":""}]
[340,null,null,null,null,{"$f":"IF(B360<>\"\",IF(IsEmpty(DefaultLibraryTypeName),\"\",DefaultLibraryTypeName),\"\")","v":""}]
[341,null,null,null,null,{"$f":"IF(B361<>\"\",IF(IsEmpty(DefaultLibraryTypeName),\"\",DefaultLibraryTypeName),\"\")","v":""}]
[342,null,null,null,null,{"$f":"IF(B362<>\"\",IF(IsEmpty(DefaultLibraryTypeName),\"\",DefaultLibraryTypeName),\"\")","v":""}]
[343,null,null,null,null,{"$f":"IF(B363<>\"\",IF(IsEmpty(DefaultLibraryTypeName),\"\",DefaultLibraryTypeName),\"\")","v":""}]
[344,null,null,null,null,{"$f":"IF(B364<>\"\",IF(IsEmpty(DefaultLibraryTypeName),\"\",DefaultLibraryTypeName),\"\")","v":""}]
[345,null,null,null,null,{"$f":"IF(B365<>\"\",IF(IsEmpty(DefaultLibraryTypeName),\"\",DefaultLibraryTypeName),\"\")","v":""}]
[346,null,null,null,null,{"$f":"IF(B366<>\"\",IF(IsEmpty(DefaultLibraryTypeName),\"\",DefaultLibraryTypeName),\"\")","v":""}]
[347,null,null,null,null,{"$f":"IF(B367<>\"\",IF(IsEmpty(DefaultLibraryTypeName),\"\",DefaultLibraryTypeName),\"\")","v":""}]
[348,null,null,null,null,{"$f":"IF(B368<>\"\",IF(IsEmpty(DefaultLibraryTypeName),\"\",DefaultLibraryTypeName),\"\")","v":""}]
[349,null,null,null,null,{"$f":"IF(B369<>\"\",IF(IsEmpty(DefaultLibraryTypeName),\"\",DefaultLibraryTypeName),\"\")","v":""}]
[350,null,null,null,null,{"$f":"IF(B370<>\"\",IF(IsEmpty(DefaultLibraryTypeName),\"\",DefaultLibraryTypeName),\"\")","v":""}]
[351,null,null,null,null,{"$f":"IF(B371<>\"\",IF(IsEmpty(DefaultLibraryTypeName),\"\",DefaultLibraryTypeName),\"\")","v":""}]
[352,null,null,null,null,{"$f":"IF(B372<>\"\",IF(IsEmpty(DefaultLibraryTypeName),\"\",DefaultLibraryTypeName),\"\")","v":""}]
[353,null,null,null,null,{"$f":"IF(B373<>\"\",IF(IsEmpty(DefaultLibraryTypeName),\"\",DefaultLibraryTypeName),\"\")","v":""}]
[354,null,null,null,null,{"$f":"IF(B374<>\"\",IF(IsEmpty(DefaultLibraryTypeName),\"\",DefaultLibraryTypeName),\"\")","v":""}]
[355,null,null,null,null,{"$f":"IF(B375<>\"\",IF(IsEmpty(DefaultLibraryTypeName),\"\",DefaultLibraryTypeName),\"\")","v":""}]
[356,null,null,null,null,{"$f":"IF(B376<>\"\",IF(IsEmpty(DefaultLibraryTypeName),\"\",DefaultLibraryTypeName),\"\")","v":""}]
[357,null,null,null,null,{"$f":"IF(B377<>\"\",IF(IsEmpty(DefaultLibraryTypeName),\"\",DefaultLibraryTypeName),\"\")","v":""}]
[358,null,null,null,null,{"$f":"IF(B378<>\"\",IF(IsEmpty(DefaultLibraryTypeName),\"\",DefaultLibraryTypeName),\"\")","v":""}]
[359,null,null,null,null,{"$f":"IF(B379<>\"\",IF(IsEmpty(DefaultLibraryTypeName),\"\",DefaultLibraryTypeName),\"\")","v":""}]
[360,null,null,null,null,{"$f":"IF(B380<>\"\",IF(IsEmpty(DefaultLibraryTypeName),\"\",DefaultLibraryTypeName),\"\")","v":""}]
[361,null,null,null,null,{"$f":"IF(B381<>\"\",IF(IsEmpty(DefaultLibraryTypeName),\"\",DefaultLibraryTypeName),\"\")","v":""}]
[362,null,null,null,null,{"$f":"IF(B382<>\"\",IF(IsEmpty(DefaultLibraryTypeName),\"\",DefaultLibraryTypeName),\"\")","v":""}]
[363,null,null,null,null,{"$f":"IF(B383<>\"\",IF(IsEmpty(DefaultLibraryTypeName),\"\",DefaultLibraryTypeName),\"\")","v":""}]
[364,null,null,null,null,{"$f":"IF(B384<>\"\",IF(IsEmpty(DefaultLibraryTypeName),\"\",DefaultLibraryTypeName),\"\")","v":""}]
[365,null,null,null,null,{"$f":"IF(B385<>\"\",IF(IsEmpty(DefaultLibraryTypeName),\"\",DefaultLibraryTypeName),\"\")","v":""}]
[366,null,null,null,null,{"$f":"IF(B386<>\"\",IF(IsEmpty(DefaultLibraryTypeName),\"\",DefaultLibraryTypeName),\"\")","v":""}]
[367,null,null,null,null,{"$f":"IF(B387<>\"\",IF(IsEmpty(DefaultLibraryTypeName),\"\",DefaultLibraryTypeName),\"\")","v":""}]
[368,null,null,null,null,{"$f":"IF(B388<>\"\",IF(IsEmpty(DefaultLibraryTypeName),\"\",DefaultLibraryTypeName),\"\")","v":""}]
[369,null,null,null,null,{"$f":"IF(B389<>\"\",IF(IsEmpty(DefaultLibraryTypeName),\"\",DefaultLibraryTypeName),\"\")","v":""}]
[370,null,null,null,null,{"$f":"IF(B390<>\"\",IF(IsEmpty(DefaultLibraryTypeName),\"\",DefaultLibraryTypeName),\"\")","v":""}]
[371,null,null,null,null,{"$f":"IF(B391<>\"\",IF(IsEmpty(DefaultLibraryTypeName),\"\",DefaultLibraryTypeName),\"\")","v":""}]
[372,null,null,null,null,{"$f":"IF(B392<>\"\",IF(IsEmpty(DefaultLibraryTypeName),\"\",DefaultLibraryTypeName),\"\")","v":""}]
[373,null,null,null,null,{"$f":"IF(B393<>\"\",IF(IsEmpty(DefaultLibraryTypeName),\"\",DefaultLibraryTypeName),\"\")","v":""}]
[374,null,null,null,null,{"$f":"IF(B394<>\"\",IF(IsEmpty(DefaultLibraryTypeName),\"\",DefaultLibraryTypeName),\"\")","v":""}]
[375,null,null,null,null,{"$f":"IF(B395<>\"\",IF(IsEmpty(DefaultLibraryTypeName),\"\",DefaultLibraryTypeName),\"\")","v":""}]
[376,null,null,null,null,{"$f":"IF(B396<>\"\",IF(IsEmpty(DefaultLibraryTypeName),\"\",DefaultLibraryTypeName),\"\")","v":""}]
[377,null,null,null,null,{"$f":"IF(B397<>\"\",IF(IsEmpty(DefaultLibraryTypeName),\"\",DefaultLibraryTypeName),\"\")","v":""}]
[378,null,null,null,null,{"$f":"IF(B398<>\"\",IF(IsEmpty(DefaultLibraryTypeName),\"\",DefaultLibraryTypeName),\"\")","v":""}]
[379,null,null,null,null,{"$f":"IF(B399<>\"\",IF(IsEmpty(DefaultLibraryTypeName),\"\",DefaultLibraryTypeName),\"\")","v":""}]
[380,null,null,null,null,{"$f":"IF(B400<>\"\",IF(IsEmpty(DefaultLibraryTypeName),\"\",DefaultLibraryTypeName),\"\")","v":""}]
[381,null,null,null,null,{"$f":"IF(B401<>\"\",IF(IsEmpty(DefaultLibraryTypeName),\"\",DefaultLibraryTypeName),\"\")","v":""}]
[382,null,null,null,null,{"$f":"IF(B402<>\"\",IF(IsEmpty(DefaultLibraryTypeName),\"\",DefaultLibraryTypeName),\"\")","v":""}]
[383,null,null,null,null,{"$f":"IF(B403<>\"\",IF(IsEmpty(DefaultLibraryTypeName),\"\",DefaultLibraryTypeName),\"\")","v":""}]
[384,null,null,null,null,{"$f":"IF(B404<>\"\",IF(IsEmpty(DefaultLibraryTypeName),\"\",DefaultLibraryTypeName),\"\")","v":""}]
[385,null,null,null,null,{"$f":"IF(B405<>\"\",IF(IsEmpty(DefaultLibraryTypeName),\"\",DefaultLibraryTypeName),\"\")","v":""}]
[386,null,null,null,null,{"$f":"IF(B406<>\"\",IF(IsEmpty(DefaultLibraryTypeName),\"\",DefaultLibraryTypeName),\"\")","v":""}]
[387,null,null,null,null,{"$f":"IF(B407<>\"\",IF(IsEmpty(DefaultLibraryTypeName),\"\",DefaultLibraryTypeName),\"\")","v":""}]
[388,null,null,null,null,{"$f":"IF(B408<>\"\",IF(IsEmpty(DefaultLibraryTypeName),\"\",DefaultLibraryTypeName),\"\")","v":""}]
[389,null,null,null,null,{"$f":"IF(B409<>\"\",IF(IsEmpty(DefaultLibraryTypeName),\"\",DefaultLibraryTypeName),\"\")","v":""}]
[390,null,null,null,null,{"$f":"IF(B410<>\"\",IF(IsEmpty(DefaultLibraryTypeName),\"\",DefaultLibraryTypeName),\"\")","v":""}]
[391,null,null,null,null,{"$f":"IF(B411<>\"\",IF(IsEmpty(DefaultLibraryTypeName),\"\",DefaultLibraryTypeName),\"\")","v":""}]
[392,null,null,null,null,{"$f":"IF(B412<>\"\",IF(IsEmpty(DefaultLibraryTypeName),\"\",DefaultLibraryTypeName),\"\")","v":""}]
[393,null,null,null,null,{"$f":"IF(B413<>\"\",IF(IsEmpty(DefaultLibraryTypeName),\"\",DefaultLibraryTypeName),\"\")","v":""}]
[394,null,null,null,null,{"$f":"IF(B414<>\"\",IF(IsEmpty(DefaultLibraryTypeName),\"\",DefaultLibraryTypeName),\"\")","v":""}]
[395,null,null,null,null,{"$f":"IF(B415<>\"\",IF(IsEmpty(DefaultLibraryTypeName),\"\",DefaultLibraryTypeName),\"\")","v":""}]
[396,null,null,null,null,{"$f":"IF(B416<>\"\",IF(IsEmpty(DefaultLibraryTypeName),\"\",DefaultLibraryTypeName),\"\")","v":""}]
[397,null,null,null,null,{"$f":"IF(B417<>\"\",IF(IsEmpty(DefaultLibraryTypeName),\"\",DefaultLibraryTypeName),\"\")","v":""}]
[398,null,null,null,null,{"$f":"IF(B418<>\"\",IF(IsEmpty(DefaultLibraryTypeName),\"\",DefaultLibraryTypeName),\"\")","v":""}]
[399,null,null,null,null,{"$f":"IF(B419<>\"\",IF(IsEmpty(DefaultLibraryTypeName),\"\",DefaultLibraryTypeName),\"\")","v":""}]
[400,null,null,null,null,{"$f":"IF(B420<>\"\",IF(IsEmpty(DefaultLibraryTypeName),\"\",DefaultLibraryTypeName),\"\")","v":""}]
[401,null,null,null,null,{"$f":"IF(B421<>\"\",IF(IsEmpty(DefaultLibraryTypeName),\"\",DefaultLibraryTypeName),\"\")","v":""}]
[402,null,null,null,null,{"$f":"IF(B422<>\"\",IF(IsEmpty(DefaultLibraryTypeName),\"\",DefaultLibraryTypeName),\"\")","v":""}]
[403,null,null,null,null,{"$f":"IF(B423<>\"\",IF(IsEmpty(DefaultLibraryTypeName),\"\",DefaultLibraryTypeName),\"\")","v":""}]
[404,null,null,null,null,{"$f":"IF(B424<>\"\",IF(IsEmpty(DefaultLibraryTypeName),\"\",DefaultLibraryTypeName),\"\")","v":""}]
[405,null,null,null,null,{"$f":"IF(B425<>\"\",IF(IsEmpty(DefaultLibraryTypeName),\"\",DefaultLibraryTypeName),\"\")","v":""}]
[406,null,null,null,null,{"$f":"IF(B426<>\"\",IF(IsEmpty(DefaultLibraryTypeName),\"\",DefaultLibraryTypeName),\"\")","v":""}]
[407,null,null,null,null,{"$f":"IF(B427<>\"\",IF(IsEmpty(DefaultLibraryTypeName),\"\",DefaultLibraryTypeName),\"\")","v":""}]
[408,null,null,null,null,{"$f":"IF(B428<>\"\",IF(IsEmpty(DefaultLibraryTypeName),\"\",DefaultLibraryTypeName),\"\")","v":""}]
[409,null,null,null,null,{"$f":"IF(B429<>\"\",IF(IsEmpty(DefaultLibraryTypeName),\"\",DefaultLibraryTypeName),\"\")","v":""}]
[410,null,null,null,null,{"$f":"IF(B430<>\"\",IF(IsEmpty(DefaultLibraryTypeName),\"\",DefaultLibraryTypeName),\"\")","v":""}]
[411,null,null,null,null,{"$f":"IF(B431<>\"\",IF(IsEmpty(DefaultLibraryTypeName),\"\",DefaultLibraryTypeName),\"\")","v":""}]
[412,null,null,null,null,{"$f":"IF(B432<>\"\",IF(IsEmpty(DefaultLibraryTypeName),\"\",DefaultLibraryTypeName),\"\")","v":""}]
[413,null,null,null,null,{"$f":"IF(B433<>\"\",IF(IsEmpty(DefaultLibraryTypeName),\"\",DefaultLibraryTypeName),\"\")","v":""}]
[414,null,null,null,null,{"$f":"IF(B434<>\"\",IF(IsEmpty(DefaultLibraryTypeName),\"\",DefaultLibraryTypeName),\"\")","v":""}]
[415,null,null,null,null,{"$f":"IF(B435<>\"\",IF(IsEmpty(DefaultLibraryTypeName),\"\",DefaultLibraryTypeName),\"\")","v":""}]
[416,null,null,null,null,{"$f":"IF(B436<>\"\",IF(IsEmpty(DefaultLibraryTypeName),\"\",DefaultLibraryTypeName),\"\")","v":""}]
[417,null,null,null,null,{"$f":"IF(B437<>\"\",IF(IsEmpty(DefaultLibraryTypeName),\"\",DefaultLibraryTypeName),\"\")","v":""}]
[418,null,null,null,null,{"$f":"IF(B438<>\"\",IF(IsEmpty(DefaultLibraryTypeName),\"\",DefaultLibraryTypeName),\"\")","v":""}]
[419,null,null,null,null,{"$f":"IF(B439<>\"\",IF(IsEmpty(DefaultLibraryTypeName),\"\",DefaultLibraryTypeName),\"\")","v":""}]
[420,null,null,null,null,{"$f":"IF(B440<>\"\",IF(IsEmpty(DefaultLibraryTypeName),\"\",DefaultLibraryTypeName),\"\")","v":""}]
[421,null,null,null,null,{"$f":"IF(B441<>\"\",IF(IsEmpty(DefaultLibraryTypeName),\"\",DefaultLibraryTypeName),\"\")","v":""}]
[422,null,null,null,null,{"$f":"IF(B442<>\"\",IF(IsEmpty(DefaultLibraryTypeName),\"\",DefaultLibraryTypeName),\"\")","v":""}]
[423,null,null,null,null,{"$f":"IF(B443<>\"\",IF(IsEmpty(DefaultLibraryTypeName),\"\",DefaultLibraryTypeName),\"\")","v":""}]
[424,null,null,null,null,{"$f":"IF(B444<>\"\",IF(IsEmpty(DefaultLibraryTypeName),\"\",DefaultLibraryTypeName),\"\")","v":""}]
[425,null,null,null,null,{"$f":"IF(B445<>\"\",IF(IsEmpty(DefaultLibraryTypeName),\"\",DefaultLibraryTypeName),\"\")","v":""}]
[426,null,null,null,null,{"$f":"IF(B446<>\"\",IF(IsEmpty(DefaultLibraryTypeName),\"\",DefaultLibraryTypeName),\"\")","v":""}]
[427,null,null,null,null,{"$f":"IF(B447<>\"\",IF(IsEmpty(DefaultLibraryTypeName),\"\",DefaultLibraryTypeName),\"\")","v":""}]
[428,null,null,null,null,{"$f":"IF(B448<>\"\",IF(IsEmpty(DefaultLibraryTypeName),\"\",DefaultLibraryTypeName),\"\")","v":""}]
[429,null,null,null,null,{"$f":"IF(B449<>\"\",IF(IsEmpty(DefaultLibraryTypeName),\"\",DefaultLibraryTypeName),\"\")","v":""}]
[430,null,null,null,null,{"$f":"IF(B450<>\"\",IF(IsEmpty(DefaultLibraryTypeName),\"\",DefaultLibraryTypeName),\"\")","v":""}]
[431,null,null,null,null,{"$f":"IF(B451<>\"\",IF(IsEmpty(DefaultLibraryTypeName),\"\",DefaultLibraryTypeName),\"\")","v":""}]
[432,null,null,null,null,{"$f":"IF(B452<>\"\",IF(IsEmpty(DefaultLibraryTypeName),\"\",DefaultLibraryTypeName),\"\")","v":""}]
[433,null,null,null,null,{"$f":"IF(B453<>\"\",IF(IsEmpty(DefaultLibraryTypeName),\"\",DefaultLibraryTypeName),\"\")","v":""}]
[434,null,null,null,null,{"$f":"IF(B454<>\"\",IF(IsEmpty(DefaultLibraryTypeName),\"\",DefaultLibraryTypeName),\"\")","v":""}]
[435,null,null,null,null,{"$f":"IF(B455<>\"\",IF(IsEmpty(DefaultLibraryTypeName),\"\",DefaultLibraryTypeName),\"\")","v":""}]
[436,null,null,null,null,{"$f":"IF(B456<>\"\",IF(IsEmpty(DefaultLibraryTypeName),\"\",DefaultLibraryTypeName),\"\")","v":""}]
[437,null,null,null,null,{"$f":"IF(B457<>\"\",IF(IsEmpty(DefaultLibraryTypeName),\"\",DefaultLibraryTypeName),\"\")","v":""}]
[438,null,null,null,null,{"$f":"IF(B458<>\"\",IF(IsEmpty(DefaultLibraryTypeName),\"\",DefaultLibraryTypeName),\"\")","v":""}]
[439,null,null,null,null,{"$f":"IF(B459<>\"\",IF(IsEmpty(DefaultLibraryTypeName),\"\",DefaultLibraryTypeName),\"\")","v":""}]
[440,null,null,null,null,{"$f":"IF(B460<>\"\",IF(IsEmpty(DefaultLibraryTypeName),\"\",DefaultLibraryTypeName),\"\")","v":""}]
[441,null,null,null,null,{"$f":"IF(B461<>\"\",IF(IsEmpty(DefaultLibraryTypeName),\"\",DefaultLibraryTypeName),\"\")","v":""}]
[442,null,null,null,null,{"$f":"IF(B462<>\"\",IF(IsEmpty(DefaultLibraryTypeName),\"\",DefaultLibraryTypeName),\"\")","v":""}]
[443,null,null,null,null,{"$f":"IF(B463<>\"\",IF(IsEmpty(DefaultLibraryTypeName),\"\",DefaultLibraryTypeName),\"\")","v":""}]
[444,null,null,null,null,{"$f":"IF(B464<>\"\",IF(IsEmpty(DefaultLibraryTypeName),\"\",DefaultLibraryTypeName),\"\")","v":""}]
[445,null,null,null,null,{"$f":"IF(B465<>\"\",IF(IsEmpty(DefaultLibraryTypeName),\"\",DefaultLibraryTypeName),\"\")","v":""}]
[446,null,null,null,null,{"$f":"IF(B466<>\"\",IF(IsEmpty(DefaultLibraryTypeName),\"\",DefaultLibraryTypeName),\"\")","v":""}]
[447,null,null,null,null,{"$f":"IF(B467<>\"\",IF(IsEmpty(DefaultLibraryTypeName),\"\",DefaultLibraryTypeName),\"\")","v":""}]
[448,null,null,null,null,{"$f":"IF(B468<>\"\",IF(IsEmpty(DefaultLibraryTypeName),\"\",DefaultLibraryTypeName),\"\")","v":""}]
[449,null,null,null,null,{"$f":"IF(B469<>\"\",IF(IsEmpty(DefaultLibraryTypeName),\"\",DefaultLibraryTypeName),\"\")","v":""}]
[450,null,null,null,null,{"$f":"IF(B470<>\"\",IF(IsEmpty(DefaultLibraryTypeName),\"\",DefaultLibraryTypeName),\"\")","v":""}]
[451,null,null,null,null,{"$f":"IF(B471<>\"\",IF(IsEmpty(DefaultLibraryTypeName),\"\",DefaultLibraryTypeName),\"\")","v":""}]
[452,null,null,null,null,{"$f":"IF(B472<>\"\",IF(IsEmpty(DefaultLibraryTypeName),\"\",DefaultLibraryTypeName),\"\")","v":""}]
[453,null,null,null,null,{"$f":"IF(B473<>\"\",IF(IsEmpty(DefaultLibraryTypeName),\"\",DefaultLibraryTypeName),\"\")","v":""}]
[454,null,null,null,null,{"$f":"IF(B474<>\"\",IF(IsEmpty(DefaultLibraryTypeName),\"\",DefaultLibraryTypeName),\"\")","v":""}]
[455,null,null,null,null,{"$f":"IF(B475<>\"\",IF(IsEmpty(DefaultLibraryTypeName),\"\",DefaultLibraryTypeName),\"\")","v":""}]
[456,null,null,null,null,{"$f":"IF(B476<>\"\",IF(IsEmpty(DefaultLibraryTypeName),\"\",DefaultLibraryTypeName),\"\")","v":""}]
[457,null,null,null,null,{"$f":"IF(B477<>\"\",IF(IsEmpty(DefaultLibraryTypeName),\"\",DefaultLibraryTypeName),\"\")","v":""}]
[458,null,null,null,null,{"$f":"IF(B478<>\"\",IF(IsEmpty(DefaultLibraryTypeName),\"\",DefaultLibraryTypeName),\"\")","v":""}]
[459,null,null,null,null,{"$f":"IF(B479<>\"\",IF(IsEmpty(DefaultLibraryTypeName),\"\",DefaultLibraryTypeName),\"\")","v":""}]
[460,null,null,null,null,{"$f":"IF(B480<>\"\",IF(IsEmpty(DefaultLibraryTypeName),\"\",DefaultLibraryTypeName),\"\")","v":""}]
[461,null,null,null,null,{"$f":"IF(B481<>\"\",IF(IsEmpty(DefaultLibraryTypeName),\"\",DefaultLibraryTypeName),\"\")","v":""}]
[462,null,null,null,null,{"$f":"IF(B482<>\"\",IF(IsEmpty(DefaultLibraryTypeName),\"\",DefaultLibraryTypeName),\"\")","v":""}]
[463,null,null,null,null,{"$f":"IF(B483<>\"\",IF(IsEmpty(DefaultLibraryTypeName),\"\",DefaultLibraryTypeName),\"\")","v":""}]
[464,null,null,null,null,{"$f":"IF(B484<>\"\",IF(IsEmpty(DefaultLibraryTypeName),\"\",DefaultLibraryTypeName),\"\")","v":""}]
[465,null,null,null,null,{"$f":"IF(B485<>\"\",IF(IsEmpty(DefaultLibraryTypeName),\"\",DefaultLibraryTypeName),\"\")","v":""}]
[466,null,null,null,null,{"$f":"IF(B486<>\"\",IF(IsEmpty(DefaultLibraryTypeName),\"\",DefaultLibraryTypeName),\"\")","v":""}]
[467,null,null,null,null,{"$f":"IF(B487<>\"\",IF(IsEmpty(DefaultLibraryTypeName),\"\",DefaultLibraryTypeName),\"\")","v":""}]
[468,null,null,null,null,{"$f":"IF(B488<>\"\",IF(IsEmpty(DefaultLibraryTypeName),\"\",DefaultLibraryTypeName),\"\")","v":""}]
[469,null,null,null,null,{"$f":"IF(B489<>\"\",IF(IsEmpty(DefaultLibraryTypeName),\"\",DefaultLibraryTypeName),\"\")","v":""}]
[470,null,null,null,null,{"$f":"IF(B490<>\"\",IF(IsEmpty(DefaultLibraryTypeName),\"\",DefaultLibraryTypeName),\"\")","v":""}]
[471,null,null,null,null,{"$f":"IF(B491<>\"\",IF(IsEmpty(DefaultLibraryTypeName),\"\",DefaultLibraryTypeName),\"\")","v":""}]
[472,null,null,null,null,{"$f":"IF(B492<>\"\",IF(IsEmpty(DefaultLibraryTypeName),\"\",DefaultLibraryTypeName),\"\")","v":""}]
[473,null,null,null,null,{"$f":"IF(B493<>\"\",IF(IsEmpty(DefaultLibraryTypeName),\"\",DefaultLibraryTypeName),\"\")","v":""}]
[474,null,null,null,null,{"$f":"IF(B494<>\"\",IF(IsEmpty(DefaultLibraryTypeName),\"\",DefaultLibraryTypeName),\"\")","v":""}]
[475,null,null,null,null,{"$f":"IF(B495<>\"\",IF(IsEmpty(DefaultLibraryTypeName),\"\",DefaultLibraryTypeName),\"\")","v":""}]
[476,null,null,null,null,{"$f":"IF(B496<>\"\",IF(IsEmpty(DefaultLibraryTypeName),\"\",DefaultLibraryTypeName),\"\")","v":""}]
[477,null,null,null,null,{"$f":"IF(B497<>\"\",IF(IsEmpty(DefaultLibraryTypeName),\"\",DefaultLibraryTypeName),\"\")","v":""}]
[478,null,null,null,null,{"$f":"IF(B498<>\"\",IF(IsEmpty(DefaultLibraryTypeName),\"\",DefaultLibraryTypeName),\"\")","v":""}]
[479,null,null,null,null,{"$f":"IF(B499<>\"\",IF(IsEmpty(DefaultLibraryTypeName),\"\",DefaultLibraryTypeName),\"\")","v":""}]
[480,null,null,null,null,{"$f":"IF(B500<>\"\",IF(IsEmpty(DefaultLibraryTypeName),\"\",DefaultLibraryTypeName),\"\")","v":""}]
[481,null,null,null,null,{"$f":"IF(B501<>\"\",IF(IsEmpty(DefaultLibraryTypeName),\"\",DefaultLibraryTypeName),\"\")","v":""}]
[482,null,null,null,null,{"$f":"IF(B502<>\"\",IF(IsEmpty(DefaultLibraryTypeName),\"\",DefaultLibraryTypeName),\"\")","v":""}]
[483,null,null,null,null,{"$f":"IF(B503<>\"\",IF(IsEmpty(DefaultLibraryTypeName),\"\",DefaultLibraryTypeName),\"\")","v":""}]
[484,null,null,null,null,{"$f":"IF(B504<>\"\",IF(IsEmpty(DefaultLibraryTypeName),\"\",DefaultLibraryTypeName),\"\")","v":""}]
[485,null,null,null,null,{"$f":"IF(B505<>\"\",IF(IsEmpty(DefaultLibraryTypeName),\"\",DefaultLibraryTypeName),\"\")","v":""}]
[486,null,null,null,null,{"$f":"IF(B506<>\"\",IF(IsEmpty(DefaultLibraryTypeName),\"\",DefaultLibraryTypeName),\"\")","v":""}]
[487,null,null,null,null,{"$f":"IF(B507<>\"\",IF(IsEmpty(DefaultLibraryTypeName),\"\",DefaultLibraryTypeName),\"\")","v":""}]
[488,null,null,null,null,{"$f":"IF(B508<>\"\",IF(IsEmpty(DefaultLibraryTypeName),\"\",DefaultLibraryTypeName),\"\")","v":""}]
[489,null,null,null,null,{"$f":"IF(B509<>\"\",IF(IsEmpty(DefaultLibraryTypeName),\"\",DefaultLibraryTypeName),\"\")","v":""}]
[490,null,null,null,null,{"$f":"IF(B510<>\"\",IF(IsEmpty(DefaultLibraryTypeName),\"\",DefaultLibraryTypeName),\"\")","v":""}]
[491,null,null,null,null,{"$f":"IF(B511<>\"\",IF(IsEmpty(DefaultLibraryTypeName),\"\",DefaultLibraryTypeName),\"\")","v":""}]
[492,null,null,null,null,{"$f":"IF(B512<>\"\",IF(IsEmpty(DefaultLibraryTypeName),\"\",DefaultLibraryTypeName),\"\")","v":""}]
[493,null,null,null,null,{"$f":"IF(B513<>\"\",IF(IsEmpty(DefaultLibraryTypeName),\"\",DefaultLibraryTypeName),\"\")","v":""}]
[494,null,null,null,null,{"$f":"IF(B514<>\"\",IF(IsEmpty(DefaultLibraryTypeName),\"\",DefaultLibraryTypeName),\"\")","v":""}]
[495,null,null,null,null,{"$f":"IF(B515<>\"\",IF(IsEmpty(DefaultLibraryTypeName),\"\",DefaultLibraryTypeName),\"\")","v":""}]
[496,null,null,null,null,{"$f":"IF(B516<>\"\",IF(IsEmpty(DefaultLibraryTypeName),\"\",DefaultLibraryTypeName),\"\")","v":""}]
[497,null,null,null,null,{"$f":"IF(B517<>\"\",IF(IsEmpty(DefaultLibraryTypeName),\"\",DefaultLibraryTypeName),\"\")","v":""}]
[498,null,null,null,null,{"$f":"IF(B518<>\"\",IF(IsEmpty(DefaultLibraryTypeName),\"\",DefaultLibraryTypeName),\"\")","v":""}]
[499,null,null,null,null,{"$f":"IF(B519<>\"\",IF(IsEmpty(DefaultLibraryTypeName),\"\",DefaultLibraryTypeName),\"\")","v":""}]
[500,null,null,null,null,{"$f":"IF(B520<>\"\",IF(IsEmpty(DefaultLibraryTypeName),\"\",DefaultLibraryTypeName),\"\")","v":""}]

{"sheet":"Settings","index":2,"n_rows":37,"n_cols":16,"rows_kept":37,"cut":false,"hidden":true,"merged":[]}
["Institute ","INCPM Bioinformatics Analysis","illumina Sequencer and Run Mode","Kits","NextSeq Kits","*Nucleic Acid isolated","DNA & RNA Library Preparation Protocols","MiSeq","NextSeq High Output","NextSeq Mid Output","NovaSeq X Plus 1.5B","NovaSeq X Plus 10B","NovaSeq X Plus 25B",null,null,"ValidPhoneNumber"]
["ARO- Volcani","Yes","MiSeq",1,0.5,"DNA","ChIP Seq","V2_50 cycles","NextSeq 75 cycles","NextSeq 150 cycles","NovaSeq X Plus 100 cycles","NovaSeq X Plus 100 cycles","NovaSeq X Plus 300 cycles",null,null,{"$f":"IsLocalPhoneNumber('Submission Form'!$B$9)","v":false}]
["Barzilai Medical Center","No","NextSeq High Output",2,1,"RNA","EpiGnome Methyl-Seq Kit, Epicentre","V2_ 300 cycles","Not yet determined","NextSeq 300 cycles ","NovaSeq X Plus 200 cycles","NovaSeq X Plus 200 cycles","Not yet determined"]
["BGU",null,"NextSeq Mid Output","Not yet determined",2,null,"Haloplex Exome Capture, Agilent","V2_500 cycles",null,"Not yet determined","NovaSeq X Plus 300 cycles","NovaSeq X Plus 300 cycles"]
["BIU",null,"NovaSeq X Plus 1.5B",null,"Not yet determined",null,"INCPM ChIP Seq","V3_150 cycles",null,null,"Not yet determined","Not yet determined"]
["DSASC",null,"NovaSeq X Plus 10B",null,null,null,"INCPM DNA Seq","V3_600 cycles"]
["Hadassah Medical Center",null,"NovaSeq X Plus 25B",null,null,null,"INCPM DNA Seq PCR-Free","MicroV2_300 cycles"]
["Haifa Medical Center ",null,"Not yet determined",null,null,null,"NEBNext DNA Library Prep Master Mix Set for illumina, NEB","NanoV2_300 cycles"]
["Haifa University",null,null,null,null,null,"NEBNext Ultra DNA Library Prep Kit for Illumina, NEB","NanoV2_500 cycles"]
["HUJI",null,null,null,null,null,"NEBNext Ultra II DNA Library Prep Kit for Illumina, NEB","Not yet determined"]
["HUJI (Faculty)",null,null,null,null,null,"Nextera Rapid Capture Exome, illumina"]
["Ichilov Medical Center",null,null,null,null,null,"Nextera XT DNA Sample Preparation"]
["IIBR",null,null,null,null,null,"PCR based library"]
["Kaplan Medical Center",null,null,null,null,null,"Reduced Representation Bisulfite Sequencing (RRBS), gDNA, In House"]
["Rabin Medical Center",null,null,null,null,null,"SureSelect XT Target Enrichment, Exome, Agilent"]
["Schneider Medical Center",null,null,null,null,null,"TruSeq DNA PCR-Free"]
["Sheba Medical Center",null,null,null,null,null,"16S Amplicon, In House"]
["TAU",null,null,null,null,null,"Broad Directional RNA Seq, In House"]
["Technion",null,null,null,null,null,"INCPM mRNA Seq"]
["Veterinary",null,null,null,null,null,"INCPM mRNA Seq w/o PolyA Capture"]
["WIS",null,null,null,null,null,"In House Protocol for small RNA"]
["Other- Type here",null,null,null,null,null,"NEBNext MultiPlex Small RNA"]
[null,null,null,null,null,null,"NEBNext Ultra RNA Library Prep Kit for Illumina, NEB"]
[null,null,null,null,null,null,"NEBNext Ultra Directional RNA Library Prep Kit for Illumina, NEB"]
[null,null,null,null,null,null,"mRNA seq library, In House"]
[null,null,null,null,null,null,"RNASeq Directional library, In House"]
[null,null,null,null,null,null,"RNASeq  library, In House"]
[null,null,null,null,null,null,"Ribosome profiling, RiboSeq"]
[null,null,null,null,null,null,"SMARTer Stranded RNA-Seq Kit"]
[null,null,null,null,null,null,"SMARTer Ultra Low Input RNA"]
[null,null,null,null,null,null,"Transeq"]
[null,null,null,null,null,null,"TruSeq mRNA"]
[null,null,null,null,null,null,"TruSeq mRNA, w/o PolyA Capture"]
[null,null,null,null,null,null,"TruSeq Small RNA"]
[null,null,null,null,null,null,"TruSeq Stranded mRNA"]
[null,null,null,null,null,null,"TruSeq Stranded Total RNA   "]
[null,null,null,null,null,null,"Other- Type here"]